Cogmind - Beta 15 @@@ ROGUE MODE // 2025.06.25 @ 11:37:21 Player: saltine Result: Establishing Free Derelict Territories! Performance ------------- Evolutions (9) 4500 Regions Visited (35) 7000 Robots Destroyed (514) 2570 Value Destroyed (30064) 30064 Prototype IDs (107) 2140 Alien Tech Used (0) 0 Bonus (40829) 40829 TOTAL SCORE: 87103 Bonus ------- High Alert Combat Kills 5240 Follower Combat Kills 2343 Awakened Behemoth Slayer 1000 Entered Garrisons 800 Network Hubs Disabled 800 Met Imprinter 300 Acquired ECA 300 Met Warlord at Base 500 MAIN.C Attacked Warlord 500 Warlord Defense Kills 266 Built Enhanced Grunts 300 A7 Reached Mainframe 300 Met R17 at Cetus 500 Met R17 at Research 2000 Met Warlord at Research 2000 Destroyed MAIN.C Guards 500 Met MAIN.C 5000 Hacked MAIN.C 300 Destroyed MAIN.C Shell 5000 Destroyed MAIN.C 10000 Met Warlord at Command 2000 Win 3000 Friendly Fire -2120 Cogmind --------- Core Integrity 1384/1600 Matter 279/300 Energy 1240/1240 System Corruption 5% Temperature Cool (0) Movement Walking (122) Location Free Derelict Territories Parts ------- > --- POWER (3) -------- Assembled Flux Generator Zero-point Reactor > --- PROPULSION (5) --- Biometal Leg Enhanced Biometal Leg Enhanced Biometal Leg Assembled Alloy Leg Assembled Alloy Leg > --- UTILITY (13) ----- Assembled Nanovents Large Storage Unit Assembled Biocell Array Long-range Sensor Array Advanced Signal Interpreter Assembled Combat Suite Centrium Medium Armor Plating > --- WEAPON (4) ------- Assembled Focal Cannon Null Cannon Neutron Missile Launcher Advanced Micro-nuke Launcher > --- INVENTORY (15) --- Biometal Leg Zionite Biocell (600) Surveybot 24 Scanner Hacking Drone Bay (1/1) Subatomic Replicator Potential Cannon Cooled Nova Cannon Gamma Bomb Array Peak State ------------ > --- POWER ------------ Assembled Flux Generator Improved Quantum Reactor > --- PROPULSION ------- Biometal Leg Enhanced Biometal Leg Enhanced Biometal Leg Assembled Alloy Leg Assembled Alloy Leg > --- UTILITY ---------- Assembled Nanovents Large Storage Unit Assembled Biocell Array Long-range Sensor Array Advanced Signal Interpreter Surveybot 24 Scanner Surveybot 24 Chip Assembled Combat Suite Centrium Medium Armor Plating Assembled Alloy Armor System Mapper GOLEM Unit > --- WEAPON ----------- Assembled Focal Cannon Assembled Focal Cannon Assembled Focal Cannon Null Cannon > --- INVENTORY -------- Zero-point Reactor Biometal Leg Zionite Biocell Experimental Reaction Control System Improved Point Defense System Hacking Drone Bay Subatomic Replicator Potential Cannon Gamma Bomb Array Neutron Missile Launcher [Rating: 220] Favorites ----------- Power Assembled Flux Generator Engine Improved Ion Engine Power Core Light Nuclear Core Reactor Assembled Flux Generator Propulsion Assembled Alloy Leg Treads Light Treads Leg Assembled Alloy Leg Wheel Armored Huge Wheel Flight Unit Improved Flight Unit Utility Huge Storage Unit Device GOLEM Unit Storage Huge Storage Unit Processor Advanced Signal Interpreter Hackware Ghost Barrier Protection Assembled Alloy Armor Weapon Assembled Focal Cannon Energy Gun Heavy Beamcaster Energy Cannon Assembled Focal Cannon Ballistic Gun Assault Rifle Ballistic Cannon Mini Assault Cannon Launcher Neutron Missile Launcher Special Weapon Advanced Remote Datajack Impact Weapon Power Maul Slashing Weapon Ripper Piercing Weapon CR-A16's Behemoth Slayer Special Melee Weapon Advanced Datajack Build | -11 -10 -10 -10 -9 -8 -8 -7 -7 -6 -6 -6 -6 -6 -6 -6 -5 -5 -5 -5 -5 -5 -5 -4 -4 -4 -4 -4 -4 -3 -3 -3 -2 -2 -1 -1 ------- Run | Yrd Mat Min Exi Min Mat Gar Fac Gar Fac Was Fac Low Low Zio Dee Pro Fac Gar Fac Upp Upp War Pro Fac Ext Cet Arc Hub Res Qua Gar Res Tes Acc Com Slots Evolved 18 | . . . . . 4 . 2 . 2 . . . . . . . 2 . . . . . . 2 . . . . 2 . . 2 . 2 . Power 2 | . . . . . . . . . 1 . . . . . . . . . . . . . . . . . . . . . . . . 1 . Propulsion 3 | . . . . . 2 . . . . . . . . . . . . . . . . . . . . . . . . . . 1 . . . Utility 11 | . . . . . . . 2 . 1 . . . . . . . 2 . . . . . . 2 . . . . 2 . . 1 . 1 . Weapon 2 | . . . . . 2 . . . . . . . . . . . . . . . . . . . . . . . . . . . . . . Parts Attached 238 | 1 10 5 3 . 23 17 8 21 . 21 5 . 3 8 26 4 4 2 8 4 1 5 3 6 3 2 6 3 4 1 4 11 4 5 7 Power 19 | . 1 . 1 . 1 2 1 2 . 2 . . . 1 3 . . . 2 . . 1 . . . . . . . . . . . 1 1 Engine 8 | . 1 . 1 . . 1 1 2 . 1 . . . 1 . . . . . . . . . . . . . . . . . . . . . Core 2 | . . . . . 1 1 . . . . . . . . . . . . . . . . . . . . . . . . . . . . . Reactor 9 | . . . . . . . . . . 1 . . . . 3 . . . 2 . . 1 . . . . . . . . . . . 1 1 Propulsion 52 | . 3 . . . 11 3 3 8 . 3 . . 1 . 4 . . 1 2 1 1 3 2 . . 1 . . . . . 3 . 2 . Treads 31 | . 3 . . . 10 3 2 8 . 2 . . 1 . 2 . . . . . . . . . . . . . . . . . . . . Leg 19 | . . . . . . . . . . 1 . . . . 2 . . 1 2 1 1 3 2 . . 1 . . . . . 3 . 2 . Wheel 1 | . . . . . . . 1 . . . . . . . . . . . . . . . . . . . . . . . . . . . . Hover . | . . . . . . . . . . . . . . . . . . . . . . . . . . . . . . . . . . . . Flight 1 | . . . . . 1 . . . . . . . . . . . . . . . . . . . . . . . . . . . . . . Utility 110 | 1 3 2 1 . 4 3 2 7 . 9 3 . 2 2 15 3 4 1 3 2 . 1 1 5 3 . 5 3 4 1 3 8 3 2 4 Device 57 | 1 . 1 1 . 3 1 . 3 . 6 2 . 1 2 6 1 1 1 2 2 . 1 . 2 3 . 2 . 2 1 2 6 1 . 3 Storage 5 | . 2 . . . . . . . . . . . . . 1 . . . . . . . . 1 . . . . . . . . 1 . . Processor 8 | . . . . . 1 . 1 . . 1 . . . . . . . . . . . . 1 . . . . . 1 . . 2 . 1 . Hackware 11 | . . . . . . 1 . 1 . . . . . . . . 2 . . . . . . 1 . . 1 3 1 . . . . 1 . Protection 29 | . 1 1 . . . 1 1 3 . 2 1 . 1 . 8 2 1 . 1 . . . . 1 . . 2 . . . 1 . 1 . 1 Artifact . | . . . . . . . . . . . . . . . . . . . . . . . . . . . . . . . . . . . . Weapon 57 | . 3 3 1 . 7 9 2 4 . 7 2 . . 5 4 1 . . 1 1 . . . 1 . 1 1 . . . 1 . 1 . 2 Energy Gun 14 | . . . . . . 4 . . . 4 1 . . 2 2 . . . . 1 . . . . . . . . . . . . . . . Energy Cannon 8 | . 1 . . . 2 . . . . . 1 . . . 1 . . . . . . . . 1 . 1 . . . . . . 1 . . Ballistic Gun 13 | . 2 1 . . 5 4 . 1 . . . . . . . . . . . . . . . . . . . . . . . . . . . Ballistic Cannon 6 | . . . . . . 1 2 1 . 2 . . . . . . . . . . . . . . . . . . . . . . . . . Launcher 8 | . . 2 1 . . . . 1 . 1 . . . 1 . . . . 1 . . . . . . . . . . . . . . . 1 Special Weapon 2 | . . . . . . . . . . . . . . . 1 . . . . . . . . . . . . . . . . . . . 1 Impact Weapon 1 | . . . . . . . . 1 . . . . . . . . . . . . . . . . . . . . . . . . . . . Slashing Weapon 1 | . . . . . . . . . . . . . . 1 . . . . . . . . . . . . . . . . . . . . . Piercing Weapon 3 | . . . . . . . . . . . . . . 1 . 1 . . . . . . . . . . . . . . 1 . . . . Special Melee Weapon 1 | . . . . . . . . . . . . . . . . . . . . . . . . . . . 1 . . . . . . . . Unidentified Prototypes 40 | . 1 1 . . 1 . 1 . . 2 3 . . . 10 . . . . . . 3 2 3 . . . . . . 2 5 3 2 1 Corrupted Parts 7 | . . . . . . . . 3 . . . . . . . . . . . . . 1 3 . . . . . . . . . . . . System Corruption 25 | . . . . . . . . 8 . . . . . . . . . . . . . 4 13 . . . . . . . . . . . . Parts Lost 78 | . 2 2 . . 7 6 2 14 . 2 . . 2 2 10 . . 2 5 6 . . . . . . . . . . 3 . . 4 9 Power 9 | . . . . . 1 1 . 2 . . . . 1 1 1 . . . 1 . . . . . . . . . . . . . . . 1 Propulsion 27 | . 1 . . . 2 2 2 7 . 1 . . . . 3 . . 1 1 4 . . . . . . . . . . 1 . . 2 . Utility 25 | . 1 1 . . 1 . . 3 . 1 . . 1 . 5 . . 1 2 1 . . . . . . . . . . 1 . . 1 6 Weapon 17 | . . 1 . . 3 3 . 2 . . . . . 1 1 . . . 1 1 . . . . . . . . . . 1 . . 1 2 Highest Loss Streak 7 | . 1 1 . . 3 3 1 7 . 1 . . 1 2 7 . . 1 2 4 . . . . . . . . . . 1 . . 2 4 To Critical Strikes 1 | . . . . . . . . . . . . . . . . . . . . . . . . . . . . . . . . . . 1 . Average Backups 19 | 6 15 23 24 19 23 24 23 20 22 17 20 20 21 21 22 23 23 22 22 22 22 21 23 16 14 13 13 13 12 13 13 14 14 11 10 Power 1 | 1 1 1 1 1 1 . . . 2 . 1 1 . . 2 2 2 2 1 1 2 1 . . . 1 1 1 . 1 1 1 2 1 . Propulsion 2 | 4 4 6 5 4 3 8 8 5 6 3 2 3 3 3 1 . . . . 1 1 . 2 1 1 1 1 1 . 1 . . 1 . 1 Utility 9 | . 2 5 6 7 9 9 9 10 9 8 10 8 9 7 11 14 14 13 13 13 13 14 17 12 9 9 9 9 8 8 9 10 8 4 3 Weapon 6 | 1 7 10 10 7 9 6 6 4 5 5 7 7 8 10 6 6 6 6 6 6 6 5 4 3 3 2 1 2 1 2 1 1 2 3 4 Tool/Special . | . . . . . . . . . . . . . . . . . . . . . . . . . . . . . . . . . . . . Unused Backups 61 | . 4 . 4 3 11 1 1 . . 9 2 . 1 1 2 . . . . 1 . . . 4 . 1 . . 2 . 1 4 4 . 5 Power 5 | . 1 . . . . . . . . 1 . . . . 1 . . . . . . . . . . . . . . . . 1 1 . . Propulsion 15 | . 1 . 2 . 5 . . . . 5 . . . . . . . . . . . . . . . . . . . . . 1 . . 1 Utility 20 | . 1 . . . 3 1 . . . 1 2 . 1 1 1 . . . . . . . . 1 . 1 . . 2 . 1 1 3 . . Weapon 18 | . 1 . 1 3 3 . 1 . . 2 . . . . . . . . . . . . . 3 . . . . . . . 1 . . 3 Tool/Special 3 | . . . 1 . . . . . . . . . . . . . . . . 1 . . . . . . . . . . . . . . 1 Average Slot Usage (%) 86 | . 99 96 88 100 97 99 96 87 80 71 79 80 79 78 76 85 87 87 88 84 73 80 85 87 88 87 88 89 89 90 88 89 90 86 82 Engine 4 | . 14 14 14 14 4 2 2 5 6 6 6 6 5 6 1 . . . . . . . . . . . . . . . . . . . . Reactor 4 | . . . . . . . . . . 5 6 6 6 5 9 6 5 5 5 5 5 4 4 5 4 5 5 5 4 4 4 4 4 6 7 Treads 10 | . 17 28 28 28 35 35 27 19 26 13 13 13 12 13 9 . . . . . . . . . . . . . . . . . . . . Leg 10 | . 10 . . . . . . . . . . . . . 10 26 23 22 22 21 12 22 22 21 20 21 20 21 19 19 18 20 21 19 20 Device 14 | . 2 4 4 14 8 4 15 6 6 9 13 13 13 20 17 13 16 16 16 18 17 17 17 20 17 21 20 15 20 19 19 22 20 16 20 Storage 9 | . 14 14 14 14 9 9 7 7 6 5 6 6 6 6 6 11 11 11 11 11 11 10 11 10 10 10 9 9 9 9 9 8 8 8 8 Processor 1 | . . . . . . . 3 7 6 1 . . . . . . . . . . . . . . . . . . 2 4 4 6 8 9 7 Protection 5 | . 11 6 . . . 2 3 6 6 7 6 6 5 6 5 . 4 5 5 3 5 5 5 4 7 5 8 5 11 14 13 8 8 10 5 Energy Gun 5 | . . . . . . 13 17 . . 12 25 25 24 18 3 . . . . 4 . . . . . . . . . . . . . . . Energy Cannon 7 | . . . . . . . . . . . . . . . 7 19 17 16 16 15 15 8 15 15 15 13 14 15 13 14 13 13 13 12 10 Ballistic Gun 6 | . 27 26 25 28 33 18 . . . . . . . . . . . . . . . . . . . . . . . . . . . . . Piercing Weapon 1 | . . . . . . . . . . . . . . . 2 5 5 4 3 . 2 5 5 5 5 5 5 5 4 4 2 . . . . Peak Build Rating 220 | 7 11 19 22 19 34 41 49 53 43 97 96 97 98 95 128 133 152 149 148 148 141 160 160 178 170 167 171 171 190 183 184 201 207 220 219 Average Rating 105 | 6 9 11 14 18 28 33 44 45 42 75 95 95 95 87 91 130 146 146 143 139 132 139 156 166 166 163 165 163 180 182 180 196 202 205 194 On Entrance 110 | 6 7 11 12 22 19 26 37 49 42 43 93 96 95 93 92 127 132 141 142 141 128 114 160 160 166 165 165 171 163 180 183 184 201 203 211 Naked Turns . | . . . . . . . . . . . . . . . . . . . . . . . . . . . . . . . . . . . . Heaviest Build 194 | 15 92 94 94 92 100 109 115 117 112 155 140 160 153 138 170 189 189 181 194 192 194 189 184 186 124 120 130 130 133 130 135 136 139 159 152 Greatest Support 170 | 20 40 40 40 40 83 85 82 60 80 140 140 140 140 140 140 108 108 108 104 104 80 110 110 120 120 120 138 135 135 133 138 170 170 170 148 Greatest Overweight (x) 32 | . 2 2 2 2 1 1 3 32 1 1 . 1 2 . 2 1 1 2 1 3 3 2 1 2 1 . 1 . 1 . 1 . . 1 1 Average Overweight (x) . | . 1 2 2 2 1 1 1 2 1 . . . . . . 1 1 1 1 1 2 . 1 . . . . . . . . . . . . Largest Inventory Capacity 25 | 8 25 25 25 25 25 25 25 25 25 25 25 25 25 25 25 25 25 25 25 25 25 25 25 25 15 15 15 15 15 15 15 15 15 15 15 Average Capacity 22 | 8 19 25 25 25 25 25 25 25 25 22 25 25 25 25 25 25 25 25 25 25 25 25 25 17 15 15 14 15 14 15 15 15 15 15 15 Most Carried 25 | 6 23 25 25 25 25 25 25 25 24 25 25 25 25 25 25 25 25 25 25 25 25 25 25 25 15 15 15 15 15 15 15 15 15 15 13 Average Carried 21 | 6 15 23 24 24 24 24 23 21 23 21 24 22 24 24 24 24 24 24 24 24 24 23 24 16 14 14 14 14 13 14 14 14 14 12 11 Final Capacity 25 | 8 25 25 25 25 25 25 25 25 25 25 25 25 25 25 25 25 25 25 25 25 25 25 25 15 15 15 15 15 15 15 15 15 15 15 15 Final Carried 25 | 6 23 25 25 25 25 25 25 23 24 25 25 24 22 25 25 25 25 25 25 25 24 25 24 15 15 15 15 15 13 15 15 15 15 12 9 Class Distribution -------------------- 25% | Golem 16% | Derelict-Tank 15% | Mutant 10% | Scavenger-Golem 8% | Scavenger-Gunner 4% | Scavenger-Mutant 4% | Commander-Golem 3% | Hacker-Golem 3% | Commander-Mutant 3% | Scavenger-Tank Dominant Class ---------------- Mutant | -10/Materials Mutant | -10/Mines Commander-Mutant | -10/Exiles Mutant | -9/Mines Scavenger-Gunner | -8/Materials Scavenger-Gunner | -8/Garrison Scavenger-Gunner | -7/Factory Scavenger-Gunner | -7/Garrison Commander-Gunner | -6/Factory Scavenger-Tank | -6/Waste Derelict-Tank | -6/Factory Derelict-Tank | -6/Lower Caves Derelict-Tank | -6/Lower Caves Derelict-Tank | -6/Zion Scavenger-Mutant | -6/Deep Caves Golem | -5/Proximity Caves Golem | -5/Factory Golem | -5/Garrison Golem | -5/Factory Golem | -5/Upper Caves Golem | -5/Upper Caves Golem | -5/Warlord Golem | -4/Proximity Caves Hacker-Tank | -4/Factory Hacker-Golem | -4/Extension Commander-Golem | -4/Cetus Commander-Golem | -4/Archives Commander-Golem | -4/Hub_04(d) Golem | -3/Research Golem | -3/Quarantine Scavenger-Golem | -3/Garrison Scavenger-Golem | -2/Research Scavenger-Golem | -2/Testing Scavenger-Golem | -1/Access Scavenger-Golem | -1/Command Resources | -11 -10 -10 -10 -9 -8 -8 -7 -7 -6 -6 -6 -6 -6 -6 -6 -5 -5 -5 -5 -5 -5 -5 -4 -4 -4 -4 -4 -4 -3 -3 -3 -2 -2 -1 -1 ----------- Run | Yrd Mat Min Exi Min Mat Gar Fac Gar Fac Was Fac Low Low Zio Dee Pro Fac Gar Fac Upp Upp War Pro Fac Ext Cet Arc Hub Res Qua Gar Res Tes Acc Com Matter Collected 10199 | 228 554 126 138 312 1468 830 229 1287 21 379 170 218 273 226 479 134 80 283 309 309 137 174 10 210 236 147 145 30 126 10 275 130 100 262 154 Remotely . | . . . . . . . . . . . . . . . . . . . . . . . . . . . . . . . . . . . . Salvage Created 25267 | 89 621 164 138 72 2216 955 333 1054 . 213 903 174 444 796 430 317 552 1404 1337 1163 314 108 135 735 1148 735 138 10 967 213 2044 353 1205 3348 439 Parts 1191 | 6 42 16 5 5 113 46 16 47 . 3 22 8 17 54 24 15 19 52 79 44 18 4 5 33 48 29 12 . 38 7 98 9 61 171 25 Haulers Intercepted 16 | . 2 . . . 5 . . . . . 3 . . . . . . . . . . . . . . . . . 2 . . 3 1 . . Recyclers Shooed 8 | . 3 . . . 1 . . . . . 1 . . . . . . . . . . . . . . . . . . . . . . 3 . Parts Field Recycled . | . . . . . . . . . . . . . . . . . . . . . . . . . . . . . . . . . . . . Retrieved Matter . | . . . . . . . . . . . . . . . . . . . . . . . . . . . . . . . . . . . . Parts Self-Destructed 91 | . . . . . . . . . . . . 14 17 . . 15 . . . 23 17 . 5 . . . . . . . . . . . . Prevented 14 | . . . . . . . . . . . . . . . . . . . . 14 . . . . . . . . . . . . . . . Kills | -11 -10 -10 -10 -9 -8 -8 -7 -7 -6 -6 -6 -6 -6 -6 -6 -5 -5 -5 -5 -5 -5 -5 -4 -4 -4 -4 -4 -4 -3 -3 -3 -2 -2 -1 -1 ------- Run | Yrd Mat Min Exi Min Mat Gar Fac Gar Fac Was Fac Low Low Zio Dee Pro Fac Gar Fac Upp Upp War Pro Fac Ext Cet Arc Hub Res Qua Gar Res Tes Acc Com Combat Hostiles Destroyed 419 | . 13 10 . 2 34 27 6 33 . 1 8 4 7 5 12 7 10 32 22 21 16 2 2 13 17 8 . . 9 3 37 . 11 36 11 Guns 89 | . 13 4 . 2 33 13 1 . . 1 8 1 6 1 5 . . . . 1 . . . . . . . . . . . . . . . Cannons 203 | . . . . . . . 5 18 . . . . . . . 6 7 22 19 5 2 2 2 13 17 . . . 9 3 25 . 11 32 5 AOE 108 | . . 6 . . . 14 . 14 . . . 2 . 1 6 . 3 10 2 13 14 . . . . 1 . . . . 12 . . 4 6 Classes Destroyed 29 | 2 5 1 . 1 4 1 1 1 . 1 . 1 1 3 2 1 . . 2 . . . . . . . . . . . 1 . . . 1 Worker 12 | . 1 . . . 6 . 1 . . . . . . . . . 1 . . . . . . . . . . . . . . . . 3 . Builder 9 | . . 1 . 1 2 . . . . . 1 . . . . . . . 2 . . . . 1 . . . . . . . . . 1 . Tunneler 3 | 1 . . . 1 . . . . . . . . . . . . . . . . . . . . . . . . . . . 1 . . . Hauler 16 | . 2 . . . 5 . . . . . 3 . . . . . . . . . . . . . . . . . 2 . . 3 1 . . Recycler 9 | 1 . . . . 2 . 2 . . . 1 . . . . . . . . . . . . . . . . . . . . . . 3 . Mechanic 2 | . . . . . . . . . . . . . . . . . . . 1 . . . . . . . . . . . . . . 1 . Operator 14 | . 2 . . . 1 . . . . . . . . . . . . . . . . . . 1 2 . 4 1 2 . . . 1 . . Drone 2 | . . . . . . . . . . . . . . . . 2 . . . . . . . . . . . . . . . . . . . Watcher 13 | . . . . . . . . . . . . . . . . . . . 1 . . . . . . 2 . . 1 . . . 3 4 2 Swarmer 88 | . 3 6 . . 3 7 1 7 . . . . . . . . . 8 2 7 14 . . 1 4 . . . . . 15 . . 4 6 Cutter 4 | . . . . . . . . 4 . . . . . . . . . . . . . . . . . . . . . . . . . . . Grunt 159 | . 10 4 . 1 21 14 3 10 . . 5 2 . . . 3 8 16 8 7 2 . . 4 6 . . . 8 3 9 . 3 11 1 Brawler 10 | . . . . . 1 . . 5 . . . . . . . . . 1 1 2 . . . . . . . . . . . . . . . Duelist 6 | . . . . . 2 . . 1 . . . 1 . . . . . . . . . . . . . . . . . . . . 1 . 1 Sentry 36 | . . . . . 6 3 1 5 . . 1 . . . . . . 4 . 1 . . . . 6 . . . 1 . 6 . . 2 . Demolisher 2 | . . . . . . 1 . . . . . . . . . . . . . . . 1 . . . . . . . . . . . . . Specialist 4 | . . . . . . . . . . . . . 3 . . . . 1 . . . . . . . . . . . . . . . . . Hunter 27 | . . . . . 1 3 . . . . . . 2 . . . . . 2 2 . . 2 2 . . . . . . 4 . 3 6 . Programmer 47 | . . . . . . . 1 1 . . 2 . 1 . . 1 2 2 7 2 . 1 . 6 . . . . . . 1 . 4 13 3 Heavy 2 | . . . . . . . . . . . . . . . . . . . 2 . . . . . . . . . . . . . . . . Behemoth 4 | . . . . . . . . . . . . 1 1 . . 1 . . . . . . . . 1 . . . . . . . . . . Compactor 1 | . . . . . . . . . . 1 . . . . . . . . . . . . . . . . . . . . . . . . . Cetus Guard 8 | . . . . . . . . . . . . . . . . . . . . . . . . . . 8 . . . . . . . . . Striker 2 | . . . . . . . . . . . . . . . . . . . . . . . . . . . . . . . 2 . . . . Zionite 18 | . . . . . . . . . . . . . . 18 . . . . . . . . . . . . . . . . . . . . . Z-Light 5 | . . . . . . . . . . . . . . . 5 . . . . . . . . . . . . . . . . . . . . Assembled 7 | . . . . 1 . . . . . . . . . . 6 . . . . . . . . . . . . . . . . . . . . Golem 1 | . . . . . . . . . . . . . . . 1 . . . . . . . . . . . . . . . . . . . . Surgeon 1 | . . . . . . . . . . . . . . 1 . . . . . . . . . . . . . . . . . . . . . Thug 1 | . . . . . . . . . . . 1 . . . . . . . . . . . . . . . . . . . . . . . . Guerrilla 1 | . . . . . . . . . . . . . . . . . . . . . . . . . 1 . . . . . . . . . . Mutant 5 | . . . . . . . . . . . . . . 5 . . . . . . . . . . . . . . . . . . . . . Knight 1 | . . . . . . . . . . . . . . . . . . . . . . . . . . . . . . . . . . . 1 Best Kill Streak 13 | 2 3 3 . 1 8 8 6 7 . 1 2 3 1 13 3 3 5 5 6 11 5 1 1 6 4 5 2 1 4 3 8 2 6 8 11 Combat Bots Only 11 | . 3 3 . 1 5 8 4 7 . 1 2 3 1 4 3 3 5 5 4 11 5 1 1 6 4 4 . . 4 3 8 . 5 7 8 Max Kills in Single Turn 6 | 1 1 2 . 1 2 3 2 3 . 1 1 2 1 3 2 1 4 3 3 4 5 1 1 1 1 2 1 1 2 1 3 1 1 5 6 Gunslinging 1 | . . . . . 1 1 . . . . . . . . . . . . . . . . . . . . . . . . . . . . . Exploded 6 | . . 2 . . . 3 . 3 . . . 2 . 1 2 . 3 3 2 4 5 . . . . 1 . . . . 3 . . 4 6 Melee . | . . . . . . . . . . . . . . . . . . . . . . . . . . . . . . . . . . . . Uniques/NPCs Destroyed 1 | . . . . . . . . . . . . . . 1 . . . . . . . . . . . . . . . . . . . . . Imprinter (-6/Zion) Combat | -11 -10 -10 -10 -9 -8 -8 -7 -7 -6 -6 -6 -6 -6 -6 -6 -5 -5 -5 -5 -5 -5 -5 -4 -4 -4 -4 -4 -4 -3 -3 -3 -2 -2 -1 -1 -------- Run | Yrd Mat Min Exi Min Mat Gar Fac Gar Fac Was Fac Low Low Zio Dee Pro Fac Gar Fac Upp Upp War Pro Fac Ext Cet Arc Hub Res Qua Gar Res Tes Acc Com Hostile Shots Fired 2180 | . 80 43 . 6 120 111 45 307 . 2 43 18 72 58 67 55 27 86 109 111 19 9 4 133 60 19 . 22 48 10 147 . 52 242 55 Missed 860 | . 33 14 . 2 31 34 17 133 . . 16 5 23 21 23 11 10 28 34 32 7 2 . 57 25 15 . 9 20 3 69 . 32 132 22 Intercepted 2 | . . . . . . . . . . . . . . . . . . . . . . . . . . . . . . . . . . . 2 Hits 1320 | . 47 29 . 4 89 77 28 174 . 2 27 13 49 37 44 44 17 58 75 79 12 7 4 76 35 4 . 13 28 7 78 . 20 110 33 Melee 21 | . . . . . 4 . . 8 . 2 . . . 3 . . . . . . . . . . . . . . . . 4 . . . . Projectile 1299 | . 47 29 . 4 85 77 28 166 . . 27 13 49 34 44 44 17 58 75 79 12 7 4 76 35 4 . 13 28 7 74 . 20 110 33 AOE 20 | . 1 . . 4 . 4 . 3 . . . . . . . . . . . . . . . 1 . . . . . . . . . . 7 Critical Strikes 53 | . . . . . 3 2 1 3 . . 1 1 1 2 . 1 1 2 7 3 . . . 7 . . . . 3 . 1 . . 7 7 Part Disruptions 3 | . . . . . . . . . . . 1 . . . . . . . 1 . . . . . . . . . . . . . . 1 . Damage Taken 25821 | . 635 352 . 219 1399 1337 517 2522 . 102 490 277 1081 650 1657 1008 341 923 1732 1384 151 178 56 1445 660 108 . 172 497 117 1561 . 375 2234 1641 Core 2440 | . 52 78 . . 114 152 36 285 . . 80 33 69 39 182 159 . 123 137 242 46 54 . 159 20 . . 7 25 . 94 . 38 154 62 Absorbed by Shields 180 | . . . . . . . . . . . 55 . . . . . . . . . . . . . 62 63 . . . . . . . . . Reduced by Siege Mode 136 | . . . . . . . . . . . . . 86 . 50 . . . . . . . . . . . . . . . . . . . . Redirected to Shielding 150 | . . . . . . . . . . . . . . . 150 . . . . . . . . . . . . . . . . . . . . Ignored by Resistances 2533 | . . . . . . . . . . . . . . . . . 49 171 331 180 32 22 12 295 150 35 . 37 106 25 320 . 76 450 242 Regen/Repaired (Parts) 1359 | . . . . . . . . . . 479 163 . . 367 . . . . . . . 184 . . . . . . . . . 166 . . . Core Remaining (%) 68 | 100 . . . 48 . 51 . 54 . . . . . . . 33 . . . . . . 39 . . . . 83 . . 90 . 97 . 86 Volleys Fired 1304 | 3 57 24 5 6 88 66 19 84 . 9 25 15 28 87 32 8 17 82 101 40 17 9 12 50 58 15 2 2 33 13 71 11 46 95 74 Largest 4 | 2 2 2 2 2 4 4 3 3 . 3 4 4 4 4 4 3 3 3 3 4 3 3 3 3 3 1 3 3 3 3 3 3 3 3 3 Hottest 324 | 40 40 50 40 40 98 240 180 120 . 120 324 324 324 324 324 75 75 75 75 135 75 75 75 150 75 88 75 75 75 75 75 75 75 130 130 Shots Fired 2922 | 6 116 42 12 17 328 151 34 162 . 22 98 36 108 234 66 24 37 151 175 66 23 25 22 93 135 15 6 6 69 23 161 25 97 238 99 Gun 1162 | 6 116 31 12 17 320 128 3 9 . 10 98 28 107 226 47 . . . . 4 . . . . . . . . . . . . . . . Cannon 1634 | . . . . . 8 2 30 132 . 12 . 6 1 . 14 24 37 143 172 43 16 25 22 93 135 5 6 6 69 23 155 25 97 237 96 Launcher 124 | . . 11 . . . 21 1 21 . . . 2 . 8 5 . . 8 3 19 7 . . . . 10 . . . . 6 . . 1 1 Special 2 | . . . . . . . . . . . . . . . . . . . . . . . . . . . . . . . . . . . 2 Kinetic 795 | 6 116 31 12 17 320 108 30 132 . 12 . 6 1 . 4 . . . . . . . . . . . . . . . . . . . . Thermal 1942 | . . . . . 8 . . . . 10 98 28 107 226 47 24 37 143 172 43 16 25 22 86 135 1 6 6 69 23 155 25 97 237 96 Explosive 69 | . . 11 . . . 21 1 5 . . . 2 . 1 5 . . 8 . . 7 . . . . . . . . . 6 . . 1 1 Electromagnetic 103 | . . . . . . 22 3 25 . . . . . 7 10 . . . 3 19 . . . . . 14 . . . . . . . . . Entropic 7 | . . . . . . . . . . . . . . . . . . . . . . . . 7 . . . . . . . . . . . Phasic 4 | . . . . . . . . . . . . . . . . . . . . 4 . . . . . . . . . . . . . . . Robot Hit Streak 34 | 3 9 9 7 8 14 8 5 9 . 10 7 5 16 8 7 7 16 21 26 6 6 8 2 13 11 3 . 2 34 17 14 9 27 19 6 Robot Miss Streak 6 | 2 6 3 1 2 4 4 2 3 . 3 4 3 3 4 3 2 1 4 3 2 3 1 1 2 3 2 . 2 1 . 4 1 1 3 3 Penetration Max 1 | . . . . . . . . . . . . . . . . . . . . . . . . 1 . . . . . . . . . . . Secondary Targets 17 | . 2 . . . 8 4 . . . . . . . 3 . . . . . . . . . . . . . . . . . . . . . Max Gunslinging Chain 2 | . 1 . . . 1 1 . . . . . . . 2 . . . . . . . . . . . . . . . . . . . . . Shots Hit Robots 1596 | 3 70 25 8 9 192 79 19 87 . 12 53 18 77 66 35 17 28 76 91 40 9 17 5 56 80 5 10 2 44 15 95 14 56 133 50 Core Hits 840 | 2 33 13 6 5 88 62 13 57 . 5 25 8 17 33 20 7 11 46 38 26 21 3 4 19 33 10 2 1 22 6 61 8 31 72 32 Critical Kills 2 | . . . . . 2 . . . . . . . . . . . . . . . . . . . . . . . . . . . . . . Critical Parts Destroyed 2 | . 2 . . . . . . . . . . . . . . . . . . . . . . . . . . . . . . . . . . Critical Strikes 38 | . 2 . . . 2 . 3 9 . . 9 1 1 3 1 1 1 . 1 . . . . 2 2 . . . . . . . . . . Burn 15 | . . . . . . . . . . . 9 1 1 3 1 . . . . . . . . . . . . . . . . . . . . Meltdown 1 | . . . . . 1 . . . . . . . . . . . . . . . . . . . . . . . . . . . . . . Destroy 3 | . 2 . . . 1 . . . . . . . . . . . . . . . . . . . . . . . . . . . . . . Blast 12 | . . . . . . . 3 9 . . . . . . . . . . . . . . . . . . . . . . . . . . . Impale 5 | . . . . . . . . . . . . . . . . 1 1 . 1 . . . . . 2 . . . . . . . . . . Sunder 2 | . . . . . . . . . . . . . . . . . . . . . . . . 2 . . . . . . . . . . . Melee Attacks 50 | . . . . . . . . 1 . . 1 2 13 1 1 8 2 1 1 . 5 . . 1 3 . 10 . . . . . . . . Impact 17 | . . . . . . . . 1 . . 1 2 13 . . . . . . . . . . . . . . . . . . . . . . Slashing . | . . . . . . . . . . . . . . . . . . . . . . . . . . . . . . . . . . . . Piercing 30 | . . . . . . . . . . . . . . 1 1 8 2 1 1 . 5 . . 1 3 . 7 . . . . . . . . Sneak Attacks 13 | . . . . . . . . . . . . . . 1 . . 1 . 1 . . . . 1 . . 9 . . . . . . . . Combat Hostiles . | . . . . . . . . . . . . . . . . . . . . . . . . . . . . . . . . . . . . Follow-up Attacks . | . . . . . . . . . . . . . . . . . . . . . . . . . . . . . . . . . . . . Damage Inflicted 71058 | 39 919 873 262 129 3456 2667 622 3437 . 278 1564 728 1930 2243 1206 815 1771 5157 5389 3028 1422 805 227 3051 3948 1001 556 119 2094 705 6011 750 2753 7932 3171 Guns 11932 | 39 902 231 115 111 3277 1141 20 160 . 118 1531 406 1930 1364 521 . . . . 66 . . . . . . . . . . . . . . . Cannons 42353 | . . . . . 103 . 527 2080 . 160 . . . . 190 647 1356 3133 4320 1447 288 805 227 2917 3821 64 . 102 2065 705 4326 731 2753 6967 2619 Explosions 14945 | . . 632 . . . 1526 58 1197 . . . 322 . 816 495 . 342 1964 1019 1515 1134 . . 48 . 937 . . . . 1685 . . 703 552 Melee 1127 | . . . . . . . . . . . . . . 63 . 168 73 43 50 . . . . 86 88 . 556 . . . . . . . . Ramming 701 | . 17 10 147 18 76 . 17 . . . 33 . . . . . . 17 . . . . . . 39 . . 17 29 . . 19 . 262 . Kinetic 8407 | 39 902 231 115 111 3277 931 527 2080 . 160 . . . . 34 . . . . . . . . . . . . . . . . . . . . Thermal 46598 | . . . . . 103 105 . 53 . 118 1531 406 1930 1476 592 647 1698 3218 4995 1638 288 805 227 2549 3821 . . 102 2065 705 4401 731 2753 6967 2674 Explosive 9485 | . . 632 . . . 1421 58 568 . . . 322 . 237 424 . . 1879 . . 1134 . . . . . . . . . 1610 . . 703 497 Electromagnetic 4258 | . . . . . . 210 20 736 . . . . . 467 156 . . . 344 1324 . . . . . 1001 . . . . . . . . . Impact . | . . . . . . . . . . . . . . . . . . . . . . . . . . . . . . . . . . . . Slashing . | . . . . . . . . . . . . . . . . . . . . . . . . . . . . . . . . . . . . Piercing 1127 | . . . . . . . . . . . . . . 63 . 168 73 43 50 . . . . 86 88 . 556 . . . . . . . . Entropic 416 | . . . . . . . . . . . . . . . . . . . . . . . . 416 . . . . . . . . . . . Phasic 66 | . . . . . . . . . . . . . . . . . . . . 66 . . . . . . . . . . . . . . . Highest Corruption 13 | . 8 8 8 8 1 1 3 13 . . . . 1 1 1 2 . . 7 10 10 10 13 9 9 9 9 . . . . . . 3 5 Average Corruption 5 | . 7 8 8 8 1 1 2 7 . . . . 1 1 1 1 . . 3 9 10 8 7 3 9 9 6 . . . . . . 2 3 Corruption Purged 12 | . . . . . . . . . . . . . . . . . . . . . . . . . . . 9 . . . . . . . 3 Corruption Blocked . | . . . . . . . . . . . . . . . . . . . . . . . . . . . . . . . . . . . . Effects 613 | . 48 61 76 62 3 9 2 36 . . . . 5 4 21 11 . . 32 61 43 3 1 11 76 16 8 . . . . . . 15 9 Message Errors 142 | . 12 20 22 10 1 2 . 10 . . . . . 1 2 3 . . 3 12 8 1 . 2 20 . 3 . . . . . . 4 6 Matter Fused 132 | . 13 7 13 16 2 1 1 10 . . . . . 1 4 1 . . 10 14 13 . 1 2 14 2 2 . . . . . . 5 . Heat Flow Errors 87 | . 4 12 13 6 . . . 5 . . . . 3 1 5 . . . 5 8 6 1 . . 10 5 . . . . . . . 2 1 Energy Discharges 77 | . 2 7 9 14 . 1 . 2 . . . . 1 . 2 5 . . 5 9 7 . . 2 7 2 1 . . . . . . 1 . Parts Rejected 4 | . 3 . . 1 . . . . . . . . . . . . . . . . . . . . . . . . . . . . . . . Parts Fused 9 | . . . 1 2 . 1 . . . . . . . . . . . . . 2 2 1 . . . . . . . . . . . . . Data Loss (minor) 72 | . 9 8 9 5 . 1 . 3 . . . . . 1 2 1 . . 4 8 2 . . 3 7 4 2 . . . . . . 2 1 Data Loss (major) 38 | . 1 3 4 2 . 1 1 4 . . . . . . 3 . . . 3 5 2 . . . 6 2 . . . . . . . 1 . Misfires 28 | . 2 3 2 5 . 1 . 1 . . . . . . 2 1 . . . 1 . . . 1 8 . . . . . . . . . 1 Alerts 18 | . 2 1 3 1 . 1 . 1 . . . . . . 1 . . . 2 1 3 . . . 1 1 . . . . . . . . . Weapon Failures 6 | . . . . . . . . . . . . . 1 . . . . . . 1 . . . 1 3 . . . . . . . . . . Overload Shots . | . . . . . . . . . . . . . . . . . . . . . . . . . . . . . . . . . . . . Overflow Damage 2803 | . . 67 . . . 34 8 42 . . 3 39 . . 33 40 217 268 338 210 91 41 . 277 103 32 144 27 60 16 150 12 65 346 140 Projectiles 1812 | . . . . . . . 8 14 . . . . . . 33 35 99 117 274 148 . 41 . 277 80 . . 27 60 16 48 12 65 334 124 Explosions 650 | . . 67 . . . 34 . 28 . . . 39 . . . . 12 151 4 62 91 . . . . 32 . . . . 102 . . 12 16 Melee 341 | . . . . . . . . . . . 3 . . . . 5 106 . 60 . . . . . 23 . 144 . . . . . . . . Knockbacks 29 | . . . 1 . 2 . 7 13 . . . . . . . . . . . . . . . . . . . 1 1 . . . . 4 . Impact 9 | . . . 1 . 2 . . . . . . . . . . . . . . . . . . . . . . 1 1 . . . . 4 . Kinetic 20 | . . . . . . . 7 13 . . . . . . . . . . . . . . . . . . . . . . . . . . . Secondary . | . . . . . . . . . . . . . . . . . . . . . . . . . . . . . . . . . . . . Self-Inflicted Damage 729 | . . 30 . . . 112 . 255 . . . . . 47 52 . 61 . . 86 . . . . . 13 . . . . 73 . . . . Shots 34 | . . 1 . . . 4 . 11 . . . . . 4 2 . 1 . . 8 . . . . . 1 . . . . 2 . . . . Rammed 45 | . 1 2 35 1 4 . 1 . . . 1 . . . . . . . . . . . . . . . . . . . . . . . . Targets Rammed 78 | . 4 2 42 2 7 . 2 . . . 1 . . . . . . 1 . . . . . . 2 . . 1 2 . . 1 . 11 . Kicked 21 | . 3 . . . . . . . . . . . . . . . . 1 . . . . . . 2 . . 1 2 . . 1 . 11 . Crushed 12 | . . . 7 1 3 . 1 . . . . . . . . . . . . . . . . . . . . . . . . . . . . Highest Temperature 470 | . 221 264 272 258 332 263 57 249 . . 428 402 467 . 470 323 . 20 251 237 259 271 . . 252 242 . . 28 . 7 . . 223 315 Average Temperature 92 | . 54 94 110 92 69 102 19 47 . . 108 185 174 . 144 144 . 12 72 78 121 124 . . 86 75 . . 10 . 7 . . 88 89 Received Heat Transfer 5327 | . 297 126 . 12 648 423 129 639 . . 60 87 93 121 339 519 81 333 291 207 18 . . 178 136 . . 54 173 42 141 . 9 162 9 Effects 4 | . . . . . . . . . . . 1 . . . 1 1 . . . . . . . . . . . . . . . . . . 1 Shutdowns 1 | . . . . . . . . . . . 1 . . . . . . . . . . . . . . . . . . . . . . . . Energy Bleed 2 | . . . . . . . . . . . . . . . . 1 . . . . . . . . . . . . . . . . . . 1 Short Circuit 1 | . . . . . . . . . . . . . . . 1 . . . . . . . . . . . . . . . . . . . . Siege Activations 4 | . . . . . . . . . . . . 1 2 . 1 . . . . . . . . . . . . . . . . . . . . Total Turns 103 | . . . . . . . . . . . . 4 78 . 21 . . . . . . . . . . . . . . . . . . . . Longest Duration 47 | . . . . . . . . . . . . 4 47 . 21 . . . . . . . . . . . . . . . . . . . . Martial Activations . | . . . . . . . . . . . . . . . . . . . . . . . . . . . . . . . . . . . . Shielding Activations . | . . . . . . . . . . . . . . . . . . . . . . . . . . . . . . . . . . . . Robots Disrupted 2 | . . . . . . . . . . . . . . 1 . . . . . . . . . . . . . . . . 1 . . . . Combat Hostiles 2 | . . . . . . . . . . . . . . 1 . . . . . . . . . . . . . . . . 1 . . . . Robots Corrupted 17 | . . . . . . . . 1 . . 1 . . 3 1 . . . 1 2 . . . . . 8 . . . . . . . . . Combat Hostiles 15 | . . . . . . . . 1 . . . . . 3 1 . . . 1 2 . . . . . 7 . . . . . . . . . Parts Fried 22 | . . . . . . . . 3 . . 2 . . 5 . . . . 1 5 . . . . . 6 . . . . . . . . . Impact Corruptions 1 | . . . . . . . . . . . 1 . . . . . . . . . . . . . . . . . . . . . . . . Robots Melted 3 | . . . . . 1 . . . . . . 1 1 . . . . . . . . . . . . . . . . . . . . . . Combat Hostiles 3 | . . . . . 1 . . . . . . 1 1 . . . . . . . . . . . . . . . . . . . . . . Parts Melted 63 | . . . . . . 1 . . . . 11 5 15 6 4 . . 4 3 2 . 1 . 1 . . . 1 1 . 3 . . 5 . Heat Transferred 32273 | . . . . . 185 50 . 50 . 333 3071 703 2997 2555 975 325 975 1775 2798 875 175 425 125 1350 1997 . . 50 1125 375 2425 362 1425 3625 1147 Parts Sabotaged 5 | . . . . . . . . . . . . . . . . . . . . . . . . . . . . . . . 5 . . . . Parts Stolen . | . . . . . . . . . . . . . . . . . . . . . . . . . . . . . . . . . . . . Parts Stripped . | . . . . . . . . . . . . . . . . . . . . . . . . . . . . . . . . . . . . Power Chain Reactions 14 | . . . . . . 1 . 3 . . . . . 2 1 . . 1 1 3 . . . . . . . . . . 1 . . . 1 Alert | -11 -10 -10 -10 -9 -8 -8 -7 -7 -6 -6 -6 -6 -6 -6 -6 -5 -5 -5 -5 -5 -5 -5 -4 -4 -4 -4 -4 -4 -3 -3 -3 -2 -2 -1 -1 ------- Run | Yrd Mat Min Exi Min Mat Gar Fac Gar Fac Was Fac Low Low Zio Dee Pro Fac Gar Fac Upp Upp War Pro Fac Ext Cet Arc Hub Res Qua Gar Res Tes Acc Com Maximum Alert Level 5 | . . . . . 1 5 3 4 3 1 3 . . . . . 2 5 4 . . . . . 2 2 1 1 . . 5 3 2 3 3 Low Security (%) 46 | 100 100 100 . 100 63 . . . . 95 22 . . . . . 7 . . . . . . 100 85 . 82 85 100 100 2 . . 23 . Level 1 10 | . . . . . 36 19 . . . 4 2 . . . . . 76 4 . . . . . . 4 49 17 14 . . 1 . 93 6 . Level 2 10 | . . . . . . 8 . 4 . . 58 . . . . . 15 10 . . . . . . 10 50 . . . . 16 26 6 31 . Level 3 22 | . . . . . . 35 100 52 100 . 15 . . . . . . 13 95 . . . . . . . . . . . 18 73 . 38 99 Level 4 8 | . . . . . . 32 . 42 . . . . . . . . . 57 4 . . . . . . . . . . . 50 . . . . Level 5 1 | . . . . . . 3 . . . . . . . . . . . 14 . . . . . . . . . . . . 10 . . . . High Security . | . . . . . . . . . . . . . . . . . . . . . . . . . . . . . . . . . . . . Max Security . | . . . . . . . . . . . . . . . . . . . . . . . . . . . . . . . . . . . . Peak Influence 1947 | 10 139 150 . 31 381 1635 858 1530 812 270 920 . . . . . 444 1947 1261 . . . . 173 673 489 265 249 136 106 1725 1030 427 1010 1046 Initial 1022 | . . . . . . 241 858 550 802 270 . . . . . . 150 233 1022 . . . . . 78 372 166 . 54 . 58 969 346 217 614 Average 441 | 1 31 36 . . 126 907 777 1059 791 18 477 . . . . . 318 1210 928 . . . . 32 123 395 96 138 17 37 1129 811 319 609 890 Influence Increases 18689 | 10 374 312 24 87 1014 1514 238 1120 10 37 1507 100 150 . . 140 611 1734 917 490 383 100 50 442 1186 355 253 557 371 203 1697 194 565 1343 601 Destroy 0b10 Robot/C 9060 | . 260 200 . 60 680 740 160 660 . . 560 80 140 . . 100 200 640 440 420 340 40 40 260 500 160 80 160 180 60 740 . 220 720 220 Destroy 0b10 Robot/NC 470 | 10 25 5 20 10 80 5 15 . 5 . 40 . . . . 10 5 . 20 . . . . 10 30 10 20 5 25 . . 20 30 60 10 Destroy Leader 1344 | . 64 40 . 10 180 20 40 40 2 . 160 20 10 . . 30 20 30 102 40 40 . 10 50 46 . . 40 36 10 60 6 48 148 42 Allied During Kill 1475 | . . . 4 7 . 81 4 . 3 . 603 . . . . . . . . . 3 . . . 349 170 100 151 . . . . . . . Successful Hack 409 | . 24 . . . 7 . . . . . 28 . . . . . 18 . 26 . . . . 24 . . . . 60 76 14 . 96 36 . Select Force Hacks 180 | . . . . . 30 . . . . . . . . . . . . . . . . . . . . . . 150 . . . . . . . Disable Machine 975 | . . . . . 15 45 . 30 . . 60 . . . . . 120 75 90 . . . . 30 150 15 45 15 30 15 45 . 105 75 15 Anti-Garrison Action 2050 | . . . . . . 550 . 250 . . . . . . . . . 600 . . . . . . . . . . . . 450 150 . . 50 Destroy Structure 2231 | . 1 67 . . 7 73 19 125 . 37 41 . . . . . 98 389 194 . . . . 68 96 . 8 36 40 12 358 18 66 229 249 Advance Influence 150 | . . . . . . . . . . . . . . . . . 150 . . . . . . . . . . . . . . . . . . Partial Spotted 45 | . . . . . 15 . . . . . . . . . . . . . . . . . . . 15 . . . . . . . . 15 . Lose Combat Pursuer 300 | . . . . . . . . 15 . . 15 . . . . . . . 45 30 . 60 . . . . . . . 30 30 . . 60 15 Influence Decreases 17818 | 10 374 241 95 87 643 250 1087 376 768 809 953 646 92 66 . 140 278 120 1605 1112 648 446 76 281 680 605 670 453 475 125 50 1302 819 745 691 Entered New Map 6949 | . . . 71 . . 130 777 236 728 502 . 206 2 66 . . . 100 925 467 122 372 26 . 83 295 251 . 50 . 20 756 271 146 347 Time Decay 8403 | 10 354 231 24 52 433 . 270 . 40 97 483 440 70 . . 140 278 . 630 565 486 74 50 257 537 270 339 110 281 125 . 546 398 559 254 Lost Part 640 | . 20 10 . . 60 60 20 140 . 20 . . 20 . . . . 20 50 60 . . . . . . . . . . 30 . . 40 90 Lost Ally 919 | . . . . 35 . 60 20 . . 190 170 . . . . . . . . 20 40 . . 24 60 40 80 180 . . . . . . . Purge Threat 907 | . . . . . 150 . . . . . 300 . . . . . . . . . . . . . . . . 163 144 . . . 150 . . Squads Dispatched 81 | . 2 . . 1 7 . 2 . . . 11 . . . . . 1 . 16 . . . . 4 1 . . 5 7 . . 2 7 9 6 Investigation 19 | . . . . 1 3 . . . . . 1 . . . . . . . 2 . . . . . . . . 3 5 . . . 2 . 2 Extermination 21 | . . . . . . . 1 . . . 4 . . . . . 1 . 5 . . . . 2 . . . . . . . . 2 5 1 Reinforcement 26 | . 2 . . . 2 . . . . . 4 . . . . . . . 6 . . . . . 1 . . 1 2 . . 2 3 1 2 Assault 9 | . . . . . . . . . . . 1 . . . . . . . 3 . . . . 2 . . . . . . . . . 2 1 Garrison 6 | . . . . . 2 . 1 . . . 1 . . . . . . . . . . . . . . . . 1 . . . . . 1 . Intercept . | . . . . . . . . . . . . . . . . . . . . . . . . . . . . . . . . . . . . Searches Triggered . | . . . . . . . . . . . . . . . . . . . . . . . . . . . . . . . . . . . . Construction Impeded . | . . . . . . . . . . . . . . . . . . . . . . . . . . . . . . . . . . . . Haulers Reinforced 7 | . . . . . . . . . . . 3 . . . . . . . . . . . . . . . . . 1 . . 2 . 1 . Active Scanning Responses . | . . . . . . . . . . . . . . . . . . . . . . . . . . . . . . . . . . . . Cargo Convoy Interrupts 1 | . . . . . . . . . . . . . . . . . . . 1 . . . . . . . . . . . . . . . . Stealth | -11 -10 -10 -10 -9 -8 -8 -7 -7 -6 -6 -6 -6 -6 -6 -6 -5 -5 -5 -5 -5 -5 -5 -4 -4 -4 -4 -4 -4 -3 -3 -3 -2 -2 -1 -1 --------- Run | Yrd Mat Min Exi Min Mat Gar Fac Gar Fac Was Fac Low Low Zio Dee Pro Fac Gar Fac Upp Upp War Pro Fac Ext Cet Arc Hub Res Qua Gar Res Tes Acc Com Distress Signals 35 | . 3 . . . 3 . . . . . . . . . . 2 . . . . . . . . 1 2 . 4 6 1 . 5 2 2 4 Communications Jammed 57 | . . . . . . . . . . . . . . . . . . . 30 . . . . 3 24 . . . . . . . . . . Distress Signals 45 | . . . . . . . . . . . . . . . . . . . 20 . . . . 1 24 . . . . . . . . . . Times Spotted 644 | . 37 10 . 3 47 36 8 36 . 9 24 4 7 23 10 7 10 31 43 21 10 34 1 20 32 8 5 11 13 6 41 12 13 45 27 Peak Tracking Total 12 | . 7 3 . 1 5 4 3 12 . 6 4 3 1 5 3 4 4 5 6 8 4 11 . 4 5 5 1 5 4 4 5 3 4 6 6 Tactical Retreats 13 | . . . . . . . . 1 . 1 1 . . . . . . . 2 1 . 2 . . . . . . . 1 2 . . 1 1 Traps | -11 -10 -10 -10 -9 -8 -8 -7 -7 -6 -6 -6 -6 -6 -6 -6 -5 -5 -5 -5 -5 -5 -5 -4 -4 -4 -4 -4 -4 -3 -3 -3 -2 -2 -1 -1 ------- Run | Yrd Mat Min Exi Min Mat Gar Fac Gar Fac Was Fac Low Low Zio Dee Pro Fac Gar Fac Upp Upp War Pro Fac Ext Cet Arc Hub Res Qua Gar Res Tes Acc Com Traps Triggered 41 | . 2 . . . 1 7 2 7 1 . 3 . . . . . . 5 5 . . 1 . 3 1 . . . 1 . . . 1 1 . Indirectly 1 | . . . . . . . . 1 . . . . . . . . . . . . . . . . . . . . . . . . . . . Trap Hack Attempts . | . . . . . . . . . . . . . . . . . . . . . . . . . . . . . . . . . . . . Triggered . | . . . . . . . . . . . . . . . . . . . . . . . . . . . . . . . . . . . . Disarmed . | . . . . . . . . . . . . . . . . . . . . . . . . . . . . . . . . . . . . Reprogrammed . | . . . . . . . . . . . . . . . . . . . . . . . . . . . . . . . . . . . . Reused . | . . . . . . . . . . . . . . . . . . . . . . . . . . . . . . . . . . . . Traps Extracted . | . . . . . . . . . . . . . . . . . . . . . . . . . . . . . . . . . . . . Installed . | . . . . . . . . . . . . . . . . . . . . . . . . . . . . . . . . . . . . Triggered . | . . . . . . . . . . . . . . . . . . . . . . . . . . . . . . . . . . . . Machines | -11 -10 -10 -10 -9 -8 -8 -7 -7 -6 -6 -6 -6 -6 -6 -6 -5 -5 -5 -5 -5 -5 -5 -4 -4 -4 -4 -4 -4 -3 -3 -3 -2 -2 -1 -1 ---------- Run | Yrd Mat Min Exi Min Mat Gar Fac Gar Fac Was Fac Low Low Zio Dee Pro Fac Gar Fac Upp Upp War Pro Fac Ext Cet Arc Hub Res Qua Gar Res Tes Acc Com Machines Disabled 103 | . . . . . 1 9 . 6 . . 4 . 1 1 1 . 8 16 6 . . 1 . 2 11 1 3 1 2 1 11 1 8 5 3 Max in Single Turn 8 | . . . . . 1 2 . 2 . . 1 . 1 1 1 . 8 2 2 . . 1 . 1 1 1 . . 1 1 2 1 1 1 2 Garrison Access 4 | . . . . . . . . . . . . . . . . . . . . . . . . 1 . . . . . . . 3 . . . Garrison Relay 22 | . . . . . . 6 . 2 . . . . . . . . . 8 . . . . . . . . . . . . 6 . . . . Phase Generator 4 | . . . . . . . . 1 . . . . . . . . . 1 . . . . . . . . . . . . 1 . . . 1 Network Hub 4 | . . . . . . . . . . . . . . . . . . . . . . . . . . . . 4 . . . . . . . Machines Repaired . | . . . . . . . . . . . . . . . . . . . . . . . . . . . . . . . . . . . . Machines Dismantled . | . . . . . . . . . . . . . . . . . . . . . . . . . . . . . . . . . . . . Machines Sabotaged 3 | . . . . . . . . . . . . . . . . . . . . . . . . . . . . 3 . . . . . . . Overloaded Fab Kills . | . . . . . . . . . . . . . . . . . . . . . . . . . . . . . . . . . . . . Hacking | -11 -10 -10 -10 -9 -8 -8 -7 -7 -6 -6 -6 -6 -6 -6 -6 -5 -5 -5 -5 -5 -5 -5 -4 -4 -4 -4 -4 -4 -3 -3 -3 -2 -2 -1 -1 --------- Run | Yrd Mat Min Exi Min Mat Gar Fac Gar Fac Was Fac Low Low Zio Dee Pro Fac Gar Fac Upp Upp War Pro Fac Ext Cet Arc Hub Res Qua Gar Res Tes Acc Com Machines Accessed 92 | . 9 1 2 1 9 3 2 1 . . 11 . . 1 . . 2 1 6 1 . 4 . 6 4 1 . 4 7 5 2 2 3 2 2 Terminals 55 | . 7 . . . 6 3 1 1 . . 7 . . . . . . 1 3 . . . . 4 4 1 . 4 2 3 2 1 2 2 1 Fabricators 7 | . . . . . . . . . . . 2 . . . . . 1 . 1 . . . . 1 . . . . 2 . . . . . . Repair Stations 4 | . 1 . . . . . . . . . 1 . . . . . . . 2 . . . . . . . . . . . . . . . . Recycling Units 7 | . 1 . . . 2 . . . . . . . . . . . . . . . . . . 1 . . . . 2 . . . . . 1 Scanalyzers 3 | . . . . . . . . . . . . . . . . . . . . . . . . . . . . . 1 1 . . 1 . . Garrison Access 6 | . . . . . 1 . 1 . . . 1 . . . . . 1 . . . . . . . . . . . . 1 . 1 . . . Total Hacks 265 | . 25 1 2 1 22 10 3 1 . . 21 . . 4 . . 3 3 9 1 . 15 . 29 10 1 . 13 35 18 7 5 17 6 3 Successful 102 | . 9 1 2 1 8 1 1 1 . . 7 . . 4 . . 3 . 2 1 . 15 . 13 1 . . 6 11 5 1 1 5 2 1 Failed 163 | . 16 . . . 14 9 2 . . . 14 . . . . . . 3 7 . . . . 16 9 1 . 7 24 13 6 4 12 4 2 Catastrophic 37 | . 1 . . . 1 1 2 . . . 3 . . . . . . . 4 . . . . 1 3 1 . 1 3 5 1 2 6 1 1 Database Lockouts . | . . . . . . . . . . . . . . . . . . . . . . . . . . . . . . . . . . . . Manual 89 | . 18 . 1 . 5 . . . . . 2 . 1 5 . . 1 . 4 . . . . 16 2 1 . 10 11 1 . . 5 5 1 Terminals 173 | . 21 . . . 14 10 2 1 . . 13 . . . . . . 3 5 . . . . 25 10 1 . 13 14 12 7 1 13 6 2 Fabricators 16 | . . . . . . . . . . . 4 . . . . . 2 . 1 . . . . 2 . . . . 7 . . . . . . Repair Stations 5 | . 1 . . . . . . . . . 1 . . . . . . . 3 . . . . . . . . . . . . . . . . Recycling Units 21 | . 3 . . . 7 . . . . . . . . . . . . . . . . . . 2 . . . . 8 . . . . . 1 Scanalyzers 14 | . . . . . . . . . . . . . . . . . . . . . . . . . . . . . 6 4 . . 4 . . Garrison Access 12 | . . . . . 1 . 1 . . . 3 . . . . . 1 . . . . . . . . . . . . 2 . 4 . . . Terminal Hacks 61 | . 2 1 2 1 4 1 . 1 . . 5 . . 4 . . . . . 1 . 15 . 8 1 . . 3 3 2 1 . 4 1 1 Record 1 | . . . 1 . . . . . . . . . . . . . . . . . . . . . . . . . . . . . . . . Part Schematic 4 | . . . . . . . . . . . . . . 4 . . . . . . . . . . . . . . . . . . . . . Robot Analysis 1 | . 1 . . . . . . . . . . . . . . . . . . . . . . . . . . . . . . . . . . Prototype ID Bank 17 | . . . . . 1 . . . . . . . . . . . . . . . . 14 . 1 . . . . . . . . 1 . . Open Door 6 | . . 1 . 1 . 1 . . . . . . . . . . . . . 1 . 1 . . . . . . . . . . . . 1 Open DSF 1 | . . . . . . . . . . . 1 . . . . . . . . . . . . . . . . . . . . . . . . Level Access Points 1 | . . . . . . . . . . . . . . . . . . . . . . . . . . . . 1 . . . . . . . Branch Access Points 3 | . . . . . . . . . . . . . . . . . . . . . . . . 1 . . . . 1 . . . . 1 . Emergency Access Points 2 | . . . . . . . . 1 . . 1 . . . . . . . . . . . . . . . . . . . . . . . . Terminal Index 1 | . . . . . . . . . . . . . . . . . . . . . . . . 1 . . . . . . . . . . . Garrison Index 1 | . . . . . . . . . . . 1 . . . . . . . . . . . . . . . . . . . . . . . . Alert Level 1 | . . . . . . . . . . . . . . . . . . . . . . . . . 1 . . . . . . . . . . Unreport Threat 7 | . . . . . 1 . . . . . 2 . . . . . . . . . . . . . . . . 2 1 . . . 1 . . Locate Traps 4 | . 1 . . . . . . . . . . . . . . . . . . . . . . 1 . . . . . 1 . . 1 . . Transport Status 1 | . . . . . . . . . . . . . . . . . . . . . . . . 1 . . . . . . . . . . . Hauler Manifests 2 | . . . . . . . . . . . . . . . . . . . . . . . . 1 . . . . . . . . 1 . . Registered Components 1 | . . . . . 1 . . . . . . . . . . . . . . . . . . . . . . . . . . . . . . Zone Layout 5 | . . . . . 1 . . . . . . . . . . . . . . . . . . 2 . . . . 1 1 . . . . . Garrison Registry 1 | . . . . . . . . . . . . . . . . . . . . . . . . . . . . . . . 1 . . . . Proto ID Catalog 1 | . . . 1 . . . . . . . . . . . . . . . . . . . . . . . . . . . . . . . . Fabricator Hacks 3 | . . . . . . . . . . . 1 . . . . . 1 . . . . . . . . . . . 1 . . . . . . Network Status 3 | . . . . . . . . . . . 1 . . . . . 1 . . . . . . . . . . . 1 . . . . . . Repair Station Hacks 2 | . 1 . . . . . . . . . . . . . . . . . 1 . . . . . . . . . . . . . . . . Scan Component 1 | . . . . . . . . . . . . . . . . . . . 1 . . . . . . . . . . . . . . . . Refit 1 | . 1 . . . . . . . . . . . . . . . . . . . . . . . . . . . . . . . . . . Recycling Unit Hacks 3 | . . . . . 1 . . . . . . . . . . . . . . . . . . . . . . . 2 . . . . . . Retrieve Components 3 | . . . . . 1 . . . . . . . . . . . . . . . . . . . . . . . 2 . . . . . . Scanalyzer 4 | . . . . . . . . . . . . . . . . . . . . . . . . . . . . . 3 1 . . . . . Insert Component 4 | . . . . . . . . . . . . . . . . . . . . . . . . . . . . . 3 1 . . . . . Garrison Access Hacks 5 | . . . . . 1 . 1 . . . . . . . . . 1 . . . . . . . . . . . . 1 . 1 . . . Unlock Access 4 | . . . . . 1 . 1 . . . . . . . . . 1 . . . . . . . . . . . . 1 . . . . . Seal Access 1 | . . . . . . . . . . . . . . . . . . . . . . . . . . . . . . . . 1 . . . Unauthorized Hacks 24 | . 6 . . . 2 . . . . . 1 . . . . . 1 . 1 . . . . 5 . . . 3 2 1 . . 1 1 . Terminals 15 | . 6 . . . . . . . . . . . . . . . . . . . . . . 3 . . . 3 1 . . . 1 1 . Track 1 | . . . . . . . . . . . . . . . . . . . . . . . . . . . . . . . . . 1 . . Botnet 3 | . . . . . . . . . . . . . . . . . . . . . . . . 1 . . . . 1 . . . . 1 . Operators 1 | . . . . . . . . . . . . . . . . . . . . . . . . 1 . . . . . . . . . . . Skim 7 | . 6 . . . . . . . . . . . . . . . . . . . . . . 1 . . . . . . . . . . . Sabotage 3 | . . . . . . . . . . . . . . . . . . . . . . . . . . . . 3 . . . . . . . Fabricators 4 | . . . . . . . . . . . 1 . . . . . 1 . 1 . . . . 1 . . . . . . . . . . . Haulers 4 | . . . . . . . . . . . 1 . . . . . 1 . 1 . . . . 1 . . . . . . . . . . . Repair Stations . | . . . . . . . . . . . . . . . . . . . . . . . . . . . . . . . . . . . . Recycling Units 4 | . . . . . 2 . . . . . . . . . . . . . . . . . . 1 . . . . 1 . . . . . . Recyclers 3 | . . . . . 1 . . . . . . . . . . . . . . . . . . 1 . . . . 1 . . . . . . Tunnel 1 | . . . . . 1 . . . . . . . . . . . . . . . . . . . . . . . . . . . . . . Scanalyzers 1 | . . . . . . . . . . . . . . . . . . . . . . . . . . . . . . 1 . . . . . Researchers 1 | . . . . . . . . . . . . . . . . . . . . . . . . . . . . . . 1 . . . . . Garrison Access . | . . . . . . . . . . . . . . . . . . . . . . . . . . . . . . . . . . . . Data Cores Recovered 5 | . . . . . . . . . . . . . . . . . . . . . . . . 1 1 . . 1 1 . . . 1 . . Used 2 | . . . . . . . . . . . . . . . . . . . . . . . . 1 1 . . . . . . . . . . Hacking Detections 68 | . 8 . . . 7 3 1 . . . 10 . . . . . 1 1 6 . . . . 6 4 1 . 1 6 5 1 1 3 2 1 Full Trace Events 7 | . 1 . . . 1 1 . . . . 1 . . . . . . 1 2 . . . . . . . . . . . . . . . . Feedback Events . | . . . . . . . . . . . . . . . . . . . . . . . . . . . . . . . . . . . . Feedback Blocked . | . . . . . . . . . . . . . . . . . . . . . . . . . . . . . . . . . . . . Robot Schematics Acquired 5 | . . . . . . . . . . . . . . 4 . . . . . . . . . . . . . . . . . . 1 . . Robots Built . | . . . . . . . . . . . . . . . . . . . . . . . . . . . . . . . . . . . . Authchips . | . . . . . . . . . . . . . . . . . . . . . . . . . . . . . . . . . . . . Time . | . . . . . . . . . . . . . . . . . . . . . . . . . . . . . . . . . . . . Total Robot Build Rating . | . . . . . . . . . . . . . . . . . . . . . . . . . . . . . . . . . . . . Part Schematics Acquired 19 | . . . . . . . . . . . . . . 17 . . . . . . . . . . . . . . . . . . 2 . . Parts Built . | . . . . . . . . . . . . . . . . . . . . . . . . . . . . . . . . . . . . Authchips . | . . . . . . . . . . . . . . . . . . . . . . . . . . . . . . . . . . . . Time . | . . . . . . . . . . . . . . . . . . . . . . . . . . . . . . . . . . . . Total Part Build Rating . | . . . . . . . . . . . . . . . . . . . . . . . . . . . . . . . . . . . . Parts Repaired . | . . . . . . . . . . . . . . . . . . . . . . . . . . . . . . . . . . . . Time . | . . . . . . . . . . . . . . . . . . . . . . . . . . . . . . . . . . . . Parts Recycled . | . . . . . . . . . . . . . . . . . . . . . . . . . . . . . . . . . . . . Recycled Matter . | . . . . . . . . . . . . . . . . . . . . . . . . . . . . . . . . . . . . Retrieved Matter . | . . . . . . . . . . . . . . . . . . . . . . . . . . . . . . . . . . . . Retrieved Components 21 | . . . . . 9 . . . . . . . . . . . . . . . . . . . . . . . 12 . . . . . . Parts Scanalyzed . | . . . . . . . . . . . . . . . . . . . . . . . . . . . . . . . . . . . . Part Schematics Acquired . | . . . . . . . . . . . . . . . . . . . . . . . . . . . . . . . . . . . . Parts Damaged . | . . . . . . . . . . . . . . . . . . . . . . . . . . . . . . . . . . . . Bothacking | -11 -10 -10 -10 -9 -8 -8 -7 -7 -6 -6 -6 -6 -6 -6 -6 -5 -5 -5 -5 -5 -5 -5 -4 -4 -4 -4 -4 -4 -3 -3 -3 -2 -2 -1 -1 ------------ Run | Yrd Mat Min Exi Min Mat Gar Fac Gar Fac Was Fac Low Low Zio Dee Pro Fac Gar Fac Upp Upp War Pro Fac Ext Cet Arc Hub Res Qua Gar Res Tes Acc Com Used RIF Installer . | . . . . . . . . . . . . . . . . . . . . . . . . . . . . . . . . . . . . Robots Hacked 3 | . . . . . . . . . . . . . . . . . . . . . . . . . . . 2 . . . . . . . 1 Non-combat 2 | . . . . . . . . . . . . . . . . . . . . . . . . . . . 2 . . . . . . . . Combat . | . . . . . . . . . . . . . . . . . . . . . . . . . . . . . . . . . . . . Robot Hacks Applied 3 | . . . . . . . . . . . . . . . . . . . . . . . . . . . 3 . . . . . . . . parse_system 1 | . . . . . . . . . . . . . . . . . . . . . . . . . . . 1 . . . . . . . . check_alert 2 | . . . . . . . . . . . . . . . . . . . . . . . . . . . 2 . . . . . . . . Manual 1 | . . . . . . . . . . . . . . . . . . . . . . . . . . . . . . . . . . . 1 Relay Couplers Released 101 | . . . . . . 24 . 10 . . . . . . . . . 35 . . . . . 1 . . . . . . 23 4 . 4 . Machine Destruction 97 | . . . . . . 24 . 10 . . . . . . . . . 35 . . . . . 1 . . . . . . 23 4 . . . Programmers 4 | . . . . . . . . . . . . . . . . . . . . . . . . . . . . . . . . . . 4 . Fabnet Peak Effective % . | . . . . . . . . . . . . . . . . . . . . . . . . . . . . . . . . . . . . Robots Rewired 26 | . . . 4 . . 4 . 6 . . . . . . . . . . . 2 . . . . 10 . . . . . . . . . . Allies Hacked 1 | . . . . . . . . . . . 1 . . . . . . . . . . . . . . . . . . . . . . . . Hacks Repelled . | . . . . . . . . . . . . . . . . . . . . . . . . . . . . . . . . . . . . Allies | -11 -10 -10 -10 -9 -8 -8 -7 -7 -6 -6 -6 -6 -6 -6 -6 -5 -5 -5 -5 -5 -5 -5 -4 -4 -4 -4 -4 -4 -3 -3 -3 -2 -2 -1 -1 -------- Run | Yrd Mat Min Exi Min Mat Gar Fac Gar Fac Was Fac Low Low Zio Dee Pro Fac Gar Fac Upp Upp War Pro Fac Ext Cet Arc Hub Res Qua Gar Res Tes Acc Com Total Allies 67 | . . . 4 3 . 6 . 6 . 20 . . . . . . . . . 2 . . . . 21 5 . . . . . . . . . Largest Group 20 | . . . 4 4 . 6 1 6 6 20 14 . . . . . . . . 2 2 . . . 17 19 18 13 . . . . . . . Highest-Rated Group 1150 | . . . 45 45 . 104 31 72 72 695 556 . . . . . . . . 59 59 . . . 813 1150 1054 757 . . . . . . . Highest-Rated Ally 159 | . . . 21 21 . 31 31 12 12 50 50 . . . . . . . . 30 30 . . . 159 159 159 96 . . . . . . . Initial Warlord ECA Mod 580 | . . . . . . . 9 9 13 13 13 13 13 13 13 12 12 12 25 25 25 25 24 24 24 24 24 24 23 23 23 31 31 30 30 Total Orders 77 | . . . . . . . . 1 . . . 4 14 . . 9 1 . 19 11 5 1 6 1 . 5 . . . . . . . . . STAY 13 | . . . . . . . . 1 . . . . 3 . . 2 . . . 4 . . 2 . . 1 . . . . . . . . . FOLLOW 9 | . . . . . . . . . . . . . . . . 1 . . 1 3 . . . . . 4 . . . . . . . . . RETURN 55 | . . . . . . . . . . . . 4 11 . . 6 1 . 18 4 5 1 4 1 . . . . . . . . . . . Ally Attacks 689 | . . . . 21 . 69 8 . 3 125 190 . . . . . . . . . 6 . . . 113 31 50 73 . . . . . . . Total Damage 16094 | . . . . 270 . 926 116 . 44 3498 3908 . . . . . . . . . 131 . . . 3051 726 1657 1767 . . . . . . . Kills 74 | . . . . 2 . 11 2 . 1 6 25 . . . . . . . . . 1 . . . 13 1 4 8 . . . . . . . Allies Corrupted 5 | . . . . . . . 1 . . . 2 . . . . . . . 1 . . . . 1 . . . . . . . . . . . Allies Melted 3 | . . . . . . . . . . . . . . . . . . . . . 1 . . . . . . . . . . 2 . . . Intel | -11 -10 -10 -10 -9 -8 -8 -7 -7 -6 -6 -6 -6 -6 -6 -6 -5 -5 -5 -5 -5 -5 -5 -4 -4 -4 -4 -4 -4 -3 -3 -3 -2 -2 -1 -1 ------- Run | Yrd Mat Min Exi Min Mat Gar Fac Gar Fac Was Fac Low Low Zio Dee Pro Fac Gar Fac Upp Upp War Pro Fac Ext Cet Arc Hub Res Qua Gar Res Tes Acc Com Active Infowar (turns) 23068 | 27 272 526 1078 1882 719 93 306 . . 587 . . 82 . 1165 264 492 1235 1695 209 1271 972 806 910 2058 510 437 . 1085 260 . 962 958 1550 657 Optics 2587 | . . . . . . . . . . . . . . . . . . . . . . . . . . . . . . . . 962 958 667 . Sensors 5130 | . . . . . . . . . . . . . . . . 12 . . . . . . . 403 139 . . . 1042 260 . 730 877 1028 639 Terrain 2286 | . . . . . . . . . . 582 . . . . . . . . . . . . . . . . . . 43 . . . . 1312 349 Seismic 3824 | 27 272 526 . 1882 719 93 305 . . . . . . . . . . . . . . . . . . . . . . . . . . . . Cloaking 3277 | . . . 1078 . . . 305 . . . . . 82 . 1132 252 385 43 . . . . . . . . . . . . . . . . . Jamming 10155 | . . . . . . . . . . 5 . . . . 33 . 107 1235 1695 209 1271 972 806 910 1965 510 437 . . . . . . . . Robot Analysis Total 1 | . 1 . . . . . . . . . . . . . . . . . . . . . . . . . . . . . . . . . . Derelict Logs Recovered 18 | . . 3 . 2 . . . . . . . 1 3 3 . 2 . . . 1 1 . 2 . . . . . . . . . . . . Drone Launches 76 | . . . . . . . . . . . . 5 10 . . 6 1 . 23 5 6 . 5 15 . . . . . . . . . . . Drone Recoveries 56 | . . . . . . . . . . . . 5 9 . . 6 1 . 21 3 5 1 4 1 . . . . . . . . . . . Exploration | -11 -10 -10 -10 -9 -8 -8 -7 -7 -6 -6 -6 -6 -6 -6 -6 -5 -5 -5 -5 -5 -5 -5 -4 -4 -4 -4 -4 -4 -3 -3 -3 -2 -2 -1 -1 ------------- Run | Yrd Mat Min Exi Min Mat Gar Fac Gar Fac Was Fac Low Low Zio Dee Pro Fac Gar Fac Upp Upp War Pro Fac Ext Cet Arc Hub Res Qua Gar Res Tes Acc Com Turns Passed 54499 | 51 1820 1771 3069 1882 2213 1878 581 1414 95 1432 1807 2737 3186 2785 3032 1765 605 1334 2180 1687 1271 1788 1162 910 2335 594 1118 221 1374 301 1271 1569 958 1646 657 Spaces Moved 23776 | 34 695 513 890 578 773 683 228 538 40 664 1055 1111 1238 1556 1153 829 270 508 970 552 438 969 602 514 1079 269 300 160 535 195 788 1197 657 839 356 Core 77 | . . . . . . . . 3 . 74 . . . . . . . . . . . . . . . . . . . . . . . . . Treads 10787 | . 380 513 890 578 773 683 184 200 40 590 1055 1111 1238 1556 996 . . . . . . . . . . . . . . . . . . . . Legs 12533 | 34 315 . . . . . . . . . . . . . 157 829 270 508 970 552 438 969 602 514 1079 269 300 160 535 195 788 1197 657 839 356 Wheels 379 | . . . . . . . 44 335 . . . . . . . . . . . . . . . . . . . . . . . . . . . Hover . | . . . . . . . . . . . . . . . . . . . . . . . . . . . . . . . . . . . . Flight . | . . . . . . . . . . . . . . . . . . . . . . . . . . . . . . . . . . . . Fastest Speed 50 | 120 120 320 320 320 240 235 145 145 240 50 160 160 160 160 160 195 195 189 189 189 183 120 175 125 122 125 122 122 122 127 127 120 120 120 122 Average Speed 189 | 120 228 320 320 320 240 236 219 197 240 184 160 238 221 160 196 195 195 192 189 197 236 178 175 137 154 125 155 122 126 127 128 125 120 123 122 Slowest Speed 1650 | 120 320 320 320 320 240 240 240 1650 240 240 160 240 320 160 310 195 195 242 189 370 240 222 176 219 174 130 180 122 174 127 183 130 120 176 176 Overloaded Moves . | . . . . . . . . . . . . . . . . . . . . . . . . . . . . . . . . . . . . Propulsion Burnouts . | . . . . . . . . . . . . . . . . . . . . . . . . . . . . . . . . . . . . Robots Hopped . | . . . . . . . . . . . . . . . . . . . . . . . . . . . . . . . . . . . . Potential Cave-ins 7 | . . . . . . . . . . . . . . . . . . . 3 . . . . . . . . . . . . . . 1 3 Cave-ins Triggered . | . . . . . . . . . . . . . . . . . . . . . . . . . . . . . . . . . . . . Exploration Rate (%) 59 | 4 99 98 90 93 60 74 10 49 2 96 35 93 95 89 76 86 8 79 41 73 57 88 63 17 86 68 96 24 21 31 90 44 63 24 23 Regions Visited 35 Branch Regions 19 Pre-discovered Areas 13 | . . 1 1 . 1 . . . . . . 1 1 3 . 1 . . . 1 1 . 2 . . . . . . . . . . . . Known Exits Taken 14 | . . . . . 1 . 1 . . . . 1 . 1 . 1 1 . . . . . 1 1 . . . 1 1 1 . 1 1 1 . Unknown Exits Taken 15 | 1 1 1 1 1 . . . . . . 1 . 1 . 1 . . . 1 1 1 1 . . 1 1 1 . . . . . . . . Scrap Searched 15 | . . 1 . 2 . . . . . . . 3 2 2 . 1 . . . 2 1 . 1 . . . . . . . . . . . . Spaces Dug 244 | . . . . . . 17 . 32 . 1 1 5 12 . 11 . 4 26 29 1 30 . 8 8 . . 3 . 7 5 . 1 4 28 11 Terrain Destroyed 1655 | . . 86 . . . 69 14 150 . 2 2 64 13 3 86 11 54 268 104 30 87 5 17 31 35 . 4 2 18 6 281 6 21 73 113 Melee 22 | . . . . . . . . 1 . . 1 2 12 . 1 . 1 . . . 4 . . . . . . . . . . . . . . Projectile 442 | . . . . . . 1 5 7 . 2 1 6 1 . 5 11 9 33 74 16 9 5 17 28 35 . 4 2 18 6 33 6 21 59 28 AOE 1191 | . . 86 . . . 68 9 142 . . . 56 . 3 80 . 44 235 30 14 74 . . 3 . . . . . . 248 . . 14 85 Terrain Rammed . | . . . . . . . . . . . . . . . . . . . . . . . . . . . . . . . . . . . . Walls Destroyed . | . . . . . . . . . . . . . . . . . . . . . . . . . . . . . . . . . . . . Machines Disabled . | . . . . . . . . . . . . . . . . . . . . . . . . . . . . . . . . . . . . Actions | -11 -10 -10 -10 -9 -8 -8 -7 -7 -6 -6 -6 -6 -6 -6 -6 -5 -5 -5 -5 -5 -5 -5 -4 -4 -4 -4 -4 -4 -3 -3 -3 -2 -2 -1 -1 --------- Run | Yrd Mat Min Exi Min Mat Gar Fac Gar Fac Was Fac Low Low Zio Dee Pro Fac Gar Fac Upp Upp War Pro Fac Ext Cet Arc Hub Res Qua Gar Res Tes Acc Com Total 30797 | 37 810 597 1013 597 963 841 273 748 41 857 1112 1159 1580 1689 1871 945 315 735 1163 1104 646 1018 691 633 1646 513 949 181 1188 228 911 1254 748 1252 489 Wait 4057 | . 12 46 . . 16 . 1 5 . 102 . 15 270 4 574 78 8 99 43 421 174 4 68 35 365 214 578 13 555 14 22 . 18 268 35 Move 23745 | 33 694 512 889 577 773 682 228 537 40 663 1054 1110 1237 1555 1152 828 269 507 969 551 437 968 601 513 1078 268 299 159 534 195 787 1196 656 838 356 Hop . | . . . . . . . . . . . . . . . . . . . . . . . . . . . . . . . . . . . . Pick Up 248 | . 21 2 3 5 25 12 4 6 1 25 6 3 2 9 28 3 2 1 10 2 . 10 . 3 3 3 14 1 15 3 4 12 5 2 3 Fast Attach 148 | 1 6 1 3 1 8 7 3 11 . 13 7 . 1 8 12 1 3 4 6 3 1 3 2 2 4 1 9 . 2 . 6 9 6 1 3 Attach 112 | . 1 1 . . 6 7 4 12 . 3 . . 3 4 15 3 2 1 4 1 2 5 2 5 1 1 1 1 7 . 2 1 . 8 9 Detach 164 | . . 1 2 . 2 3 2 4 . 4 . . 1 3 5 5 4 6 3 8 8 11 4 8 9 4 11 2 21 . 9 5 1 11 7 Swap 225 | . 6 8 3 1 17 13 4 6 . 10 4 13 22 6 16 7 4 5 11 6 2 . 2 7 7 4 3 2 4 2 5 2 4 17 2 Drop 293 | . 9 . 10 5 21 11 6 5 . 28 14 1 3 12 36 4 4 3 10 7 . 8 . 9 11 3 22 . 15 1 5 17 12 1 . Fire 1304 | 3 57 24 5 6 88 66 19 84 . 9 25 15 28 87 32 8 17 82 101 40 17 9 12 50 58 15 2 2 33 13 71 11 46 95 74 Melee 50 | . . . . . . . . 1 . . 1 2 13 1 1 8 2 1 1 . 5 . . 1 3 . 10 . . . . . . . . Ram . | . . . . . . . . . . . . . . . . . . . . . . . . . . . . . . . . . . . . Kick 21 | . 3 . . . . . . . . . . . . . . . . 1 . . . . . . 2 . . 1 2 . . 1 . 11 . Crush 57 | . 1 2 42 2 7 . 2 . . . 1 . . . . . . . . . . . . . . . . . . . . . . . . Escape Stasis 54 | . . . . . . 14 . 5 . . . . . . . . . 25 5 . . . . . 5 . . . . . . . . . . Rewire 319 | . . . 56 . . 26 . 72 . . . . . . . . . . . 65 . . . . 100 . . . . . . . . . . Trap . | . . . . . . . . . . . . . . . . . . . . . . . . . . . . . . . . . . . . Miscellaneous . | . . . . . . . . . . . . . . . . . . . . . . . . . . . . . . . . . . . . Route ------- -11/Scrapyard -10/Materials (discovered 6 exits: [*Mat x3] / *Min x2 / [*Sub]) -10/Mines (discovered 4 exits: [*Mat x2] / *Exi / [*Sub]) -10/Exiles (discovered 2 exits: *Min x2) -9/Mines (discovered 2 exits: *Mat x2) -8/Materials (discovered 3 exits: *Fac x2 / Gar) -8/Garrison (discovered 2 exits: *Fac x2) -7/Factory -7/Garrison (discovered 2 exits: [*Fac x2]) -6/Factory -6/Waste -6/Factory (discovered 2 exits: *Fac / [*Low]) -6/Lower Caves -6/Lower Caves (discovered 2 exits: *Fac / *Zio) -6/Zion (discovered 2 exits: *Dee / [*Pro]) -6/Deep Caves -5/Proximity Caves -5/Factory -5/Garrison (discovered 3 exits: *Fac x3) -5/Factory (discovered 4 exits: *Fac x3 / *Upp) -5/Upper Caves -5/Upper Caves (discovered 2 exits: *Fac / *War) -5/Warlord -4/Proximity Caves -4/Factory (discovered 4 exits: Upp x2 / *Ext x2) -4/Extension (discovered 2 exits: *Res / *Cet) -4/Cetus (discovered 2 exits: *Res / [*Arc]) -4/Archives (discovered 3 exits: *Res / *Hub x2) -4/Hub_04(d) (discovered 4 exits: *Res x4) -3/Research (discovered 3 exits: Arm / *Qua x2) -3/Quarantine -3/Garrison (discovered 3 exits: *Res x3) -2/Research (discovered 2 exits: *Acc / *Tes) -2/Testing -1/Access (discovered 2 exits: [Sur] / *Com) -1/Command Free Derelict Territories History --------- Turn | Location | Event 1 | -11/Scrapyard | Discovered new exit (range 3) 52 | -11/Scrapyard | Entered Materials 182 | -10/Materials | Discovered new exit (range 16) 203 | -10/Materials | Discovered new exit (range 12) 314 | -10/Materials | Build established: Mutant 425 | -10/Materials | Discovered new exit (range 11) 821 | -10/Materials | Discovered new exit (range 15) 1154 | -10/Materials | Discovered new exit (range 4) 1539 | -10/Materials | Discovered new exit (range 16) 1872 | -10/Materials | Entered Mines 1957 | -10/Mines | Learned Materials emergency access door positions 1957 | -10/Mines | Discovered new exit (range 6) 2240 | -10/Mines | Learned Materials non-interactive machine intel 2309 | -10/Mines | Received a Rocket Launcher from a helpful Derelict 2594 | -10/Mines | Found the Drone Emporium 2634 | -10/Mines | Discovered new exit (range 15) 2676 | -10/Mines | Learned location of Zion (-6) 2729 | -10/Mines | Found Prototype Device 2729 | -10/Mines | Identified Sensor Drone Bay 2998 | -10/Mines | Found a Scrap Suit stashed away for nefarious purposes 3122 | -10/Mines | Deemed a non-threat by the Exiles lab entrance 3122 | -10/Mines | Discovered new exit (range 5) 3182 | -10/Mines | Discovered new exit (range 15) 3193 | -10/Mines | Core integrity fell below 50% 3549 | -10/Mines | A weapon hastily lodged in a ceiling crevice suddenly fell to the ground 3643 | -10/Mines | Entered Exiles 3643 | -10/Exiles | Found Exiles lab destroyed 3793 | -10/Exiles | Discovered new exit (range 15) 4226 | -10/Exiles | Opened EX-Vault 5180 | -10/Exiles | Discovered new exit (range 15) 5394 | -10/Exiles | Build established: Commander-Mutant 6361 | -10/Exiles | Found Army-in-a-Box 6712 | -10/Exiles | Entered Mines 6712 | -9/Mines | Accompanied by 4 allies 6772 | -9/Mines | Learned location of 1 exit from Materials 6861 | -9/Mines | Discovered new exit (range 14) 7054 | -9/Mines | Met a Derelict shopkeep closing up shop 7188 | -9/Mines | Lost 3 allies 7237 | -9/Mines | Discovered new exit (range 8) 7366 | -9/Mines | Build established: Mutant 7663 | -9/Mines | Assembled infested the area 7801 | -9/Mines | Learned location of 1 exit from Proximity Caves 7801 | -9/Mines | Assisted by bots powering up and referring to "LRC-V3" 8031 | -9/Mines | Found a hidden stash of uninstalled traps 8445 | -9/Mines | Lost 3 allies 8594 | -9/Mines | Entered Materials 8594 | -8/Materials | Evolved 4 slots: Propulsion x2, Weapon x2 8595 | -8/Materials | Identified exit to Factory 8597 | -8/Materials | Loaded intel: 40 non-interactive machine locations 9515 | -8/Materials | Build established: Scavenger-Gunner 9596 | -8/Materials | Discovered exit to Factory (range 4) 10616 | -8/Materials | Garrison activated, responded to threat 10727 | -8/Materials | Lost 3 parts (1p1u1w) 10807 | -8/Materials | Identified exit to Garrison 10807 | -8/Materials | Entered Garrison 10855 | -8/Garrison | Triggered checkpoint 11067 | -8/Garrison | Garrison Relay disabled 11172 | -8/Garrison | Triggered checkpoint 11189 | -8/Garrison | Triggered checkpoint 11232 | -8/Garrison | Destroyed 8 combat bots 11333 | -8/Garrison | Lost 3 parts (1p1n1w) 11355 | -8/Garrison | Triggered checkpoint 11396 | -8/Garrison | Garrison Relay disabled 11620 | -8/Garrison | Rescued a captive Derelict 11622 | -8/Garrison | Rescued a captive Derelict 11805 | -8/Garrison | Triggered checkpoint 11890 | -8/Garrison | Build established: Scavenger-Tank 11896 | -8/Garrison | Garrison Relay disabled 11997 | -8/Garrison | Triggered checkpoint 12094 | -8/Garrison | Discovered exit to Factory (range 10) 12147 | -8/Garrison | Triggered checkpoint 12193 | -8/Garrison | Garrison Relay disabled 12209 | -8/Garrison | Triggered checkpoint 12393 | -8/Garrison | Triggered checkpoint 12419 | -8/Garrison | Garrison Relay disabled 12453 | -8/Garrison | Build established: Scavenger-Gunner 12589 | -8/Garrison | Triggered checkpoint 12619 | -8/Garrison | Garrison Relay disabled 12650 | -8/Garrison | Discovered exit to Factory (range 14) 12685 | -8/Garrison | Entered Factory 12685 | -7/Factory | Accompanied by 1 ally 12685 | -7/Factory | Evolved 2 slots: Utility x2 13216 | -7/Factory | Garrison activated, responded to threat 13266 | -7/Factory | Identified exit to Garrison 13266 | -7/Factory | Entered Garrison 13326 | -7/Garrison | Destroyed 7 combat bots 13378 | -7/Garrison | Lost 7 parts (1p3n1u2w) 13400 | -7/Garrison | Found Unknown Device 13400 | -7/Garrison | Identified Launcher Loader 13433 | -7/Garrison | Build established: Gunner 13619 | -7/Garrison | Triggered checkpoint 13750 | -7/Garrison | Build established: Scavenger-Gunner 13760 | -7/Garrison | Discovered new exit (range 10) 13832 | -7/Garrison | Triggered checkpoint 13887 | -7/Garrison | Garrison Relay disabled 14096 | -7/Garrison | Triggered checkpoint 14170 | -7/Garrison | Triggered checkpoint 14280 | -7/Garrison | Lost 3 parts (1p1n1u) 14325 | -7/Garrison | System corruption reached 10% 14546 | -7/Garrison | Discovered new exit (range 11) 14679 | -7/Garrison | Phase Generator disabled 14680 | -7/Garrison | Entered Factory 14680 | -6/Factory | Accompanied by 6 allies 14680 | -6/Factory | Evolved 2 slots: Power x1, Utility x1 14775 | -6/Factory | Sucked down chute 14775 | -6/Factory | Entered Waste 14775 | -6/Waste | Met up with 1 ally sucked down the chute earlier 14785 | -6/Waste | Spotted C-40 Crusher 14791 | -6/Waste | Spotted C-40 Crusher 14817 | -6/Waste | Spotted C-40 Crusher 14818 | -6/Waste | Crushed by Compactor (1 part destroyed, 1 dropped) 14827 | -6/Waste | Spotted C-40 Crusher 14828 | -6/Waste | Spotted C-40 Crusher 14830 | -6/Waste | Spotted C-40 Crusher 14849 | -6/Waste | Crushed by Compactor (1 part destroyed, 1 dropped) 14871 | -6/Waste | Warlord forces began an assault 14880 | -6/Waste | Lost 3 allies 14895 | -6/Waste | 5 allies followed down the chute 14906 | -6/Waste | Allies destroyed C-40 Crusher 14920 | -6/Waste | Allies destroyed C-40 Crusher 14926 | -6/Waste | Allies destroyed C-40 Crusher 14945 | -6/Waste | Allies destroyed C-40 Crusher 14969 | -6/Waste | Allies destroyed C-40 Crusher 14970 | -6/Waste | Destroyed C-40 Crusher 14972 | -6/Waste | Lost 5 allies 14997 | -6/Waste | Found Damper Plating 15322 | -6/Waste | Discovered new exit (range 15) 15668 | -6/Waste | Build established: Scavenger-Tank 16207 | -6/Waste | Entered Factory 16207 | -6/Factory | Accompanied by 14 allies 16514 | -6/Factory | Build established: Derelict-Tank 16662 | -6/Factory | Garrison activated, responded to threat 16833 | -6/Factory | Lost 4 allies 17384 | -6/Factory | Discovered new exit (range 16) 17862 | -6/Factory | Discovered new exit (range 10) 17957 | -6/Factory | First assault squad dispatched 18014 | -6/Factory | Entered Lower Caves 18020 | -6/Lower Caves | Met a Warlord Commander 18021 | -6/Lower Caves | Learned location of Warlord (-5) 18022 | -6/Lower Caves | Warlord Commander delivered Encrypted Comm Array 18025 | -6/Lower Caves | Found Encrypted Comm Array 18258 | -6/Lower Caves | Learned Factory stockpile data 19985 | -6/Lower Caves | Spotted B-75 Beast 19998 | -6/Lower Caves | Destroyed B-75 Beast 20351 | -6/Lower Caves | Encountered a Warlord checkpoint 20642 | -6/Lower Caves | Discovered new exit (range 2) 20655 | -6/Lower Caves | Identified exit to Lower Caves 20751 | -6/Lower Caves | Entered another Lower Caves area 20788 | -6/Lower Caves | Discovered new exit (range 10) 20821 | -6/Lower Caves | Identified exit to Factory 21006 | -6/Lower Caves | Learned Factory emergency access door positions 22463 | -6/Lower Caves | Acquired the password to a Derelict Tinkerer's latest research 22496 | -6/Lower Caves | Found Prototype Special Weapon 22782 | -6/Lower Caves | Build established: Tank 23314 | -6/Lower Caves | Build established: Derelict-Tank 23403 | -6/Lower Caves | Caught by Unaware searching for contraband prototypes 23475 | -6/Lower Caves | Spotted B-75 Beast 23509 | -6/Lower Caves | Destroyed B-75 Beast 23575 | -6/Lower Caves | Learned Factory security intel 23588 | -6/Lower Caves | Caught by Unaware searching for contraband prototypes 23926 | -6/Lower Caves | Discovered new exit (range 8) 23937 | -6/Lower Caves | Entered Zion 23997 | -6/Zion | System corruption cleaned by Quarantine Array 24183 | -6/Zion | Discovered new exit (range 15) 24248 | -6/Zion | Build established: Mutant 24348 | -6/Zion | Learned location of Quarantine (-3) 24444 | -6/Zion | Learned Factory emergency access door positions 24557 | -6/Zion | Met Imprinter 24795 | -6/Zion | Learned Factory stockpile data 24830 | -6/Zion | Given the Hacking Drone Bay 24830 | -6/Zion | Found Prototype Device 24916 | -6/Zion | Learned Factory repair station intel 24925 | -6/Zion | Identified exit to Deep Caves 25175 | -6/Zion | Found CR-A16's Pointy Stick 25424 | -6/Zion | Build established: Derelict-Tank 26215 | -6/Zion | Murdered Imprinter 26216 | -6/Zion | Extracted access codes from Imprinter's data core 26216 | -6/Zion | Attacked by Zionites 26680 | -6/Zion | Opened final containment barrier to the Deep Caves 26713 | -6/Zion | Saw the warning signs outside the Deep Caves entrance 26722 | -6/Zion | Entered Deep Caves 26959 | -6/Deep Caves | Z-Facility disabled 27044 | -6/Deep Caves | Lost 3 parts (1p1u1w) 27120 | -6/Deep Caves | Found Prototype Protection 27120 | -6/Deep Caves | Identified Zio. Weapon Casing 27169 | -6/Deep Caves | Found Zio. Weapon Casing 27183 | -6/Deep Caves | Found Zio. Weapon Casing 27187 | -6/Deep Caves | Identified Hacking Drone Bay 27351 | -6/Deep Caves | Discovered new exit (range 15) 27407 | -6/Deep Caves | Build established: Scavenger-Mutant 27432 | -6/Deep Caves | Found Surveybot 24 Chip 27435 | -6/Deep Caves | Found Surveybot 24 Scanner 27712 | -6/Deep Caves | Spotted AG-22928 27755 | -6/Deep Caves | Destroyed AG-22928 27765 | -6/Deep Caves | Found GOLEM Unit 27784 | -6/Deep Caves | Lost 7 parts (3n4u) 28102 | -6/Deep Caves | Identified Molecular Deconstructor 29495 | -6/Deep Caves | Build established: Golem 29754 | -6/Deep Caves | Entered Proximity Caves 29929 | -5/Proximity Caves | Spotted B-75 Beast 29969 | -5/Proximity Caves | Core integrity fell below 50% 29990 | -5/Proximity Caves | Revealed the true nature of CR-A16's Pointy Stick 29993 | -5/Proximity Caves | Destroyed B-75 Beast 30258 | -5/Proximity Caves | Spotter reported a threat 31361 | -5/Proximity Caves | Learned 4 Factory zone layouts 31519 | -5/Proximity Caves | Entered Factory 31519 | -5/Factory | Evolved 2 slots: Utility x2 31524 | -5/Factory | Loaded intel: 6 repair station locations 32110 | -5/Factory | Identified exit to Garrison 32124 | -5/Factory | Entered Garrison 32147 | -5/Garrison | Garrison Relay disabled 32149 | -5/Garrison | Garrison Relay disabled 32179 | -5/Garrison | Garrison Relay disabled 32185 | -5/Garrison | Garrison Relay disabled 32278 | -5/Garrison | Triggered checkpoint 32318 | -5/Garrison | Garrison Relay disabled 32413 | -5/Garrison | Triggered checkpoint 32520 | -5/Garrison | Garrison Relay disabled 32553 | -5/Garrison | Discovered new exit (range 14) 32725 | -5/Garrison | Triggered checkpoint 32828 | -5/Garrison | Triggered checkpoint 32895 | -5/Garrison | Garrison Relay disabled 32933 | -5/Garrison | Discovered new exit (range 12) 33086 | -5/Garrison | Phase Generator disabled 33238 | -5/Garrison | Triggered checkpoint 33358 | -5/Garrison | Garrison Relay disabled 33381 | -5/Garrison | Discovered new exit (range 8) 33458 | -5/Garrison | Entered Factory 33912 | -5/Factory | Discovered new exit (range 7) 33940 | -5/Factory | Identified exit to Factory 34058 | -5/Factory | First assault squad dispatched 34653 | -5/Factory | Discovered exit to Factory (range 11) 34668 | -5/Factory | Cargo convoy interrupted 34881 | -5/Factory | Discovered exit to Factory (range 15) 34883 | -5/Factory | Specialist reinforcements revealed to be Infiltrators 35047 | -5/Factory | Allied Derelicts emerged from ambush trap array 35565 | -5/Factory | Specialist reinforcements revealed to be Infiltrators 35604 | -5/Factory | Discovered new exit (range 4) 35638 | -5/Factory | Entered Upper Caves 35686 | -5/Upper Caves | Destroyed 7 combat bots 35695 | -5/Upper Caves | Lost 4 parts (2n1u1w) 36960 | -5/Upper Caves | Encountered a Warlord checkpoint 36961 | -5/Upper Caves | Learned location of Armory (-3) 37115 | -5/Upper Caves | Attracted the attention of an 0b10 outpost 37142 | -5/Upper Caves | System corruption reached 10% 37180 | -5/Upper Caves | Destroyed 11 combat bots 37203 | -5/Upper Caves | Core integrity fell below 50% 37210 | -5/Upper Caves | Discovered new exit (range 10) 37325 | -5/Upper Caves | Entered another Upper Caves area 37325 | -5/Upper Caves | Accompanied by 2 allies 37598 | -5/Upper Caves | Discovered exit to Factory (range 12) 38580 | -5/Upper Caves | Discovered new exit (range 5) 38596 | -5/Upper Caves | Entered Warlord 38596 | -5/Warlord | Accompanied by 1 ally 38657 | -5/Warlord | System corruption cleaned by Quarantine Array 38672 | -5/Warlord | System corruption cleaned by Quarantine Array 39432 | -5/Warlord | Warlord's base attacked by MAIN.C 39483 | -5/Warlord | Met Warlord 39545 | -5/Warlord | Found Prototype Device 39545 | -5/Warlord | Identified Exp. Phase Shifter 39551 | -5/Warlord | Found Prototype Reactor 39560 | -5/Warlord | Found Prototype Processor 39565 | -5/Warlord | Found Prototype Hackware 39580 | -5/Warlord | Identified Vortex Chain Reactor 39651 | -5/Warlord | Found Prototype Special Weapon 39654 | -5/Warlord | Found Prototype Special Weapon 39782 | -5/Warlord | Warlord forces counterattacked 39872 | -5/Warlord | Found Prototype Energy Cannon 39939 | -5/Warlord | Spotted Executioner 40018 | -5/Warlord | Lost 7 allies 40107 | -5/Warlord | Warlord base infiltrated, sounded retreat 40112 | -5/Warlord | Spotted Striker 40228 | -5/Warlord | Spotted Striker 40240 | -5/Warlord | Spotted Executioner 40241 | -5/Warlord | Spotted Executioner 40271 | -5/Warlord | Found Corrupted Prototype Processor 40291 | -5/Warlord | Spotted Striker 40291 | -5/Warlord | Spotted B-86 Titan 40322 | -5/Warlord | Lost 6 allies 40334 | -5/Warlord | Spotted Striker 40344 | -5/Warlord | Spotted Striker 40361 | -5/Warlord | Discovered new exit (range 15) 40380 | -5/Warlord | Lost 10 allies 40384 | -5/Warlord | Entered Proximity Caves 41351 | -4/Proximity Caves | Learned location of Testing (-2) 41475 | -4/Proximity Caves | Discovered exit to Factory (range 11) 41545 | -4/Proximity Caves | Identified Exp. Core Analyzer (x2) 41546 | -4/Proximity Caves | Entered Factory 41546 | -4/Factory | Accompanied by 1 ally 41546 | -4/Factory | Evolved 2 slots: Utility x2 41663 | -4/Factory | Found Unknown Device 41663 | -4/Factory | Identified Quantum Capacitor 41742 | -4/Factory | Identified Vortex Driver 41842 | -4/Factory | Identified Ghost Barrier 41844 | -4/Factory | Identified exit to Upper Caves 41844 | -4/Factory | Identified exit to Extension 41926 | -4/Factory | Lost 6 allies 41969 | -4/Factory | Lost 3 allies 42148 | -4/Factory | Build established: Hacker-Tank 42456 | -4/Factory | Entered Extension 42884 | -4/Extension | Build established: Hacker-Golem 43334 | -4/Extension | Rescued a captive Derelict 43336 | -4/Extension | Rescued a captive Derelict 43384 | -4/Extension | Rescued a captive Derelict 43406 | -4/Extension | Rescued a captive Derelict 43459 | -4/Extension | Rescued a captive Derelict 43460 | -4/Extension | Rescued a captive Derelict 43487 | -4/Extension | Rescued a captive Derelict 43489 | -4/Extension | Rescued a captive Derelict 43827 | -4/Extension | Spotted B-86 Titan 43841 | -4/Extension | Allies destroyed B-86 Titan 43860 | -4/Extension | Destroyed B-86 Titan 43928 | -4/Extension | Rescued a captive Derelict 43929 | -4/Extension | Rescued a captive Derelict 44137 | -4/Extension | Rescued A7 44710 | -4/Extension | Discovered new exit (range 10) 44711 | -4/Extension | Discovered new exit (range 6) 44791 | -4/Extension | Entered Cetus 44791 | -4/Cetus | Accompanied by 16 allies (A7) 44796 | -4/Cetus | Acquired a Cetus Manufacturing Module code from A7 44814 | -4/Cetus | Build established: Commander-Golem 44939 | -4/Cetus | Spotted Cetus Guard 44939 | -4/Cetus | Spotted Cetus Guard 44943 | -4/Cetus | Spotted Cetus Guard 44944 | -4/Cetus | Spotted Cetus Guard 44952 | -4/Cetus | Destroyed Cetus Guard 44955 | -4/Cetus | Destroyed Cetus Guard 44956 | -4/Cetus | Destroyed Cetus Guard 44962 | -4/Cetus | Destroyed Cetus Guard 45012 | -4/Cetus | Started Cetus Manufacturing Module 45025 | -4/Cetus | Escorted A7 to Cetus Mainframe 45037 | -4/Cetus | Manufactured an Enhanced Grunt 45062 | -4/Cetus | Manufactured an Enhanced Grunt 45087 | -4/Cetus | Manufactured an Enhanced Grunt 45112 | -4/Cetus | Manufactured an Enhanced Grunt 45137 | -4/Cetus | Manufactured an Enhanced Grunt 45170 | -4/Cetus | Discovered new exit (range 15) 45195 | -4/Cetus | Spotted Cetus Guard 45195 | -4/Cetus | Spotted Cetus Guard 45197 | -4/Cetus | Spotted Cetus Guard 45198 | -4/Cetus | Spotted Cetus Guard 45199 | -4/Cetus | Destroyed Cetus Guard 45201 | -4/Cetus | Destroyed Cetus Guard 45204 | -4/Cetus | Destroyed Cetus Guard 45205 | -4/Cetus | Destroyed Cetus Guard 45213 | -4/Cetus | Discovered new exit (range 15) 45220 | -4/Cetus | Met Revision 17 45385 | -4/Cetus | Entered Archives 45385 | -4/Archives | Accompanied by 18 allies (A7) 45390 | -4/Archives | Received a hacking code to weaken MAIN.C 45472 | -4/Archives | Lost 4 allies 45512 | -4/Archives | Discovered new exit (range 15) 45657 | -4/Archives | Discovered new exit (range 16) 45760 | -4/Archives | Discovered new exit (range 14) 46503 | -4/Archives | Entered Hub_04(d) 46503 | -4/Hub_04(d) | Accompanied by 13 allies 46520 | -4/Hub_04(d) | Identified exit to Research 46520 | -4/Hub_04(d) | Network Hub disabled 46655 | -4/Hub_04(d) | Network Hub disabled 46657 | -4/Hub_04(d) | Network Hub disabled 46680 | -4/Hub_04(d) | Garrison activated, responded to threat 46711 | -4/Hub_04(d) | Network Hub disabled 46724 | -4/Hub_04(d) | Entered Research 46724 | -3/Research | Evolved 2 slots: Utility x2 46729 | -3/Research | Lost 6 allies 46864 | -3/Research | Identified exit to Armory 46864 | -3/Research | Identified exit to Quarantine 46924 | -3/Research | Revision forces began assault on 0b10 46987 | -3/Research | Found Gamma Bomb Array 47005 | -3/Research | Met up with Revision 17++ 47255 | -3/Research | Build established: Golem 47298 | -3/Research | Found Prototype Device 47424 | -3/Research | Research terminal network offline 47458 | -3/Research | Identified Exp. Shield Generator 48098 | -3/Research | Entered Quarantine 48109 | -3/Quarantine | Found Alien Artifact 48223 | -3/Quarantine | Identified Subatomic Replicator 48399 | -3/Quarantine | Identified exit to Garrison 48399 | -3/Quarantine | Entered Garrison 48436 | -3/Garrison | Phase Generator disabled 48514 | -3/Garrison | Garrison Relay disabled 48708 | -3/Garrison | Build established: Scavenger-Golem 48750 | -3/Garrison | Triggered checkpoint 48803 | -3/Garrison | Garrison Relay disabled 48804 | -3/Garrison | Destroyed 8 combat bots 48853 | -3/Garrison | Discovered new exit (range 11) 48865 | -3/Garrison | Triggered checkpoint 48900 | -3/Garrison | Garrison Relay disabled 48909 | -3/Garrison | Garrison Relay disabled 49123 | -3/Garrison | Triggered checkpoint 49216 | -3/Garrison | Build established: Golem 49220 | -3/Garrison | Discovered new exit (range 14) 49295 | -3/Garrison | Garrison Relay disabled 49327 | -3/Garrison | Spotted Striker 49328 | -3/Garrison | Spotted Striker 49334 | -3/Garrison | Destroyed Striker 49346 | -3/Garrison | Destroyed Striker 49450 | -3/Garrison | Discovered new exit (range 15) 49509 | -3/Garrison | Triggered checkpoint 49536 | -3/Garrison | Garrison Relay disabled 49581 | -3/Garrison | Build established: Scavenger-Golem 49657 | -3/Garrison | Discovered new exit (range 28) 49657 | -3/Garrison | Discovered new exit (range 12) 49657 | -3/Garrison | Discovered new exit (range 68) 49669 | -3/Garrison | Identified exit to Research 49670 | -3/Garrison | Entered Research 49670 | -2/Research | Warlord forces began assault on 0b10 49670 | -2/Research | Evolved 2 slots: Propulsion x1, Utility x1 49695 | -2/Research | Distinguished unit "Bridgeowners Association" dispatched to help 49695 | -2/Research | Distinguished unit "Lair Dwellers" dispatched to help 49771 | -2/Research | Discovered new exit (range 16) 49780 | -2/Research | Research machine network offline 49795 | -2/Research | Identified exit to Access 49907 | -2/Research | Spotted B-90 Cyclops 50195 | -2/Research | Met up with Warlord 50266 | -2/Research | Found Prototype Processor 50266 | -2/Research | Identified Exp. Melee Analysis Suite 50274 | -2/Research | Found Prototype Device 50274 | -2/Research | Identified Adv. Kinecellerator 50299 | -2/Research | Found Exp. Targeting Computer 50364 | -2/Research | Discovered new exit (range 5) 50369 | -2/Research | Identified exit to Testing 50436 | -2/Research | Found Gamma Bomb Array 50558 | -2/Research | Spotted Striker 50561 | -2/Research | Borebot progress halted 50580 | -2/Research | Borebot progress halted 50640 | -2/Research | Borebot progress halted 51047 | -2/Research | Spotted Striker 51049 | -2/Research | Spotted Executioner 51172 | -2/Research | Given Cave Seal Controls access code 51239 | -2/Research | Entered Testing 51313 | -2/Testing | Found Prototype Reactor 51361 | -2/Testing | Unstable Terrabomb Derivative detonated 51402 | -2/Testing | Lost 5 allies 51446 | -2/Testing | Found Prototype Energy Cannon 51569 | -2/Testing | Found Prototype Device 51569 | -2/Testing | Identified Exp. Hardlight Generator 51750 | -2/Testing | Discovered exit to Access (range 14) 51853 | -2/Testing | Found Prototype Hackware 51929 | -2/Testing | Found Prototype Energy Cannon 51929 | -2/Testing | Identified Null Cannon 52197 | -2/Testing | Entered Access 52197 | -1/Access | Evolved 2 slots: Power x1, Utility x1 52292 | -1/Access | Lost 3 allies 52485 | -1/Access | Discovered new exit (range 21) 52739 | -1/Access | Destroyed 7 combat bots 52831 | -1/Access | Identified System Mapper 52923 | -1/Access | Identified exit to Command 53424 | -1/Access | Garrison activated, responded to threat 53447 | -1/Access | First assault squad dispatched 53843 | -1/Access | Entered Command 53846 | -1/Command | Phase Generator disabled 54032 | -1/Command | Disengaged cave seal 54032 | -1/Command | Derelicts emerged from the dark tunnel 54032 | -1/Command | Welcomed Warlord to Command 54068 | -1/Command | Lost 3 allies 54136 | -1/Command | Destroyed 8 combat bots 54258 | -1/Command | Warlord commented on Warlord statues 54269 | -1/Command | Spotted M Guard 54269 | -1/Command | Spotted M Guard 54269 | -1/Command | Spotted Combat Programmer 54270 | -1/Command | Spotted Combat Programmer 54310 | -1/Command | All MAIN.C guards destroyed 54324 | -1/Command | Found Prototype Energy Cannon 54326 | -1/Command | Found Adv. Micro-nuke Launcher 54328 | -1/Command | Lost 4 parts (1p2u1w) 54333 | -1/Command | Identified Zero-point Reactor 54338 | -1/Command | Lost 11 allies 54362 | -1/Command | Met MAIN.C 54365 | -1/Command | Hacked MAIN.C using A7's code 54384 | -1/Command | MAIN.C activated Command garrisons 54384 | -1/Command | Destroyed I9-JZ7(K) 54389 | -1/Command | 0b10 Conduit disabled 54445 | -1/Command | Lost 4 allies 54467 | -1/Command | Lost 4 parts (3u1w) 54500 | *** | Establishing Free Derelict Territories! Last Messages --------------- 54493_ K0-LQL(g) suffers critical hit (Destroy). 54495_ AK-VU7(B) activates siege mode. 54495_ MAIN.C reaction time slowed by virus. 54497_ CL9F&KF#E|AR>1RK8#TRLCTZUE2/K 54497_ MAIN.C knocked back. 54498_ BX-W5I(g) destroyed. 54499_ Blast Slug penetrates MAIN.C. 54499_ MAIN.C suffers critical hit (Blast). 54499_ MAIN.C knocked back. 54499_ Blast Slug penetrates MAIN.C. 54499_ MAIN.C: "I hope you know you're still going to DIE HERE WITH ME!" 54499_ MAIN.C destroyed. 54499_ Blast Slug penetrates 0b10 Conduit. 54499_ Knocked back. 54499_ LA-V7I(g) destroyed. ZY-L1N: Victory! Sure there's still lots to do, but without MAIN.C at the helm 0b10 doesn't stand a chance. We've got this... [Achievement: Victory By Combat] Map ----- +----------------------------------------------------+ | ?????????????????????????????????????????????????? | | ?????????????????????????????????????????????????? | | ?????????????????????????????????????????????????? | | ?????????????????????????????????????????????????? | | ?????????????????????????????????????????????????? | | ?????????????????????????????????????????????????? | | ?????????????????????????????????????????????????? | | ?????????????????????????????????????????????????? | | ?????????????????????????????????????????????????? | | ?????????????????????????????????????????????????? | | ?????????????????????????????????????????????????? | | ?????????????????????????????????????????????????? | | ?????????????????????????????????????????????????? | | ?????????????????????????????????????????????????? | | ?????????????????????????????????????????????????? | | ?????????????????????????????????????????????????? | | ?????????????????????????????????????????????????? | | ?????????????????????????????????????????????????? | | ?????????????????????????????????????????????????? | | ?????????????????????????????????????????????????? | | ?????????#################???????????????????????? | | ???????"""" """ % % #???????????????????????? | | ??????? " #???????????????????????? | | ???????"" "" #######################?? | | ????????""""" g % /% %g%*g=%= % #?? | | ????????" "" WBB[BB% @ % g % *%!% " #?# | | ????????" %BB BB! / g% % "% ### | | ??????? " % %g [ ################### # | | ?????? ==g % [ #?????????????????# # | | ?????? % % #?????????????????# ## | | ?????? "#?????????????????# T# | | ?????? % $ """"""#?????????????????# ## | | ??????? """""""#?????????????????# | | ??????? """"""""#?????????????????# | | ???????? " " #?????????????????# | | ??????? " " " " #?????????????????# | | ???????? ?" ? """" " #?????????????????# = | | ???????? ""????????""""???????????????????# # | | ???????????????????????????????????????????###### | | ??????????????????????????????????????????????# | | ??????????????????????????????????????????????## | | ???????????????????????????????????????????????# # | | ???????????????????????????????????????????????### | | ??????????????????????????????????????????????#??# | | ????????????????????????????????????????????????## | | ?????????????????????????????????????????????????# | | ???????????????????????????????????????????????##? | | ?????????????????????????????????????????????????? | | ?????????????????????????????????????????????????# | | ?????????????????????????????????????????????????? | +----------------------------------------------------+ Best States ------------- Heat Dissipation 113 Energy Generation 73 Energy Capacity 2300 Matter Stores 300 Matter Capacity 300 Sight Range 23 Robot Scan Range 19 Terrain Scan Range 24 Terrain Scan Density 2010 Jamming Range 16 Cloak Strength 3 Additional Mass Support 20 Base Temperature (-) 200 Armor Coverage 1600 Resistance: KI 15 Resistance: TH 15 Resistance: EX 15 Resistance: EM 90 Resistance: I 15 Resistance: S 15 Resistance: P 15 Weapon Shielding 100 Point Defense Rating 160 Weapon Cycling 20 Phase Shifting 20 Evasion (%) 87 Targeting Accuracy 8 Melee Accuracy 12 Core Analysis 8 Recoil Reduction 4 Offensive Hacking 24 Defensive Hacking 20 Item Schematics ----------------- Imp. Component Analysis Suite | -6/Zion | Archive Phase Cannon | -6/Zion | Archive Jamming Amplifier | -6/Zion | Archive Lyr. Heavy Armor Plating | -6/Zion | Archive Imp. Armor Integrity Analyzer | -6/Zion | Archive Hpw. Shock Rifle | -6/Zion | Archive Adv. System Shield | -6/Zion | Archive Adv. Signal Interpreter | -6/Zion | Archive KE Penetrator | -6/Zion | Archive Imp. Thermal Shield | -6/Zion | Archive Drone Bay | -6/Zion | Archive Imp. Reaction Control System | -6/Zion | Archive Adv. Coolant Injector | -6/Zion | Archive Riot Gun | -6/Zion | Free Flamer | -6/Zion | Free Hvy. Riot Gun | -6/Zion | Free Barrage Gun | -6/Zion | Free Neutron Missile Launcher | -2/Testing | Archive Adv. Remote Shield | -2/Testing | Archive Robot Schematics ------------------ R-10 Processor | -6/Zion | Archive K-01 Serf | -6/Zion | Archive G-50 Soldier | -6/Zion | Archive D-83 Annihilator | -6/Zion | Archive H-88 Terminator | -2/Testing | Archive Fabricated ------------ Nothing Repaired ---------- Nothing Alien Tech Used ----------------- None Achievements -------------- 404 Monster Victory By Combat Challenges ------------ None Game ------ Seed SchematicReflexLog Manual? 0 Play Time 06:04:41 Cumulative 474.5 hours Start 2025.06.24 @ 14:54:46 End 2025.06.25 @ 11:37:21 Sessions 9 Manual Loads 0 Difficulty Rogue Special Mode None Game No. 214 Rogue 214 Adventurer 0 Explorer 0 Win Type 7 Total 21 Types 6/3/6/2/1/0/1/1/0/1 Lore% 88 Gallery% 85 Achievement% 80 Wizard Run 0 Options --------- Layout 0 ASCII 0 Keyboard 0 Movement Arrows Keybinds 0 Fullscreen 2 Font 18/SmallcapsGlow Map View 76x50 Zoom Use 0% Tactical HUD 1 Map Filters NONE Filters NONE Steam 1 RUN: e9ec53a5-e5ed-476e-b144-16f7d8897b34